Cogmind - Beta 9.4 @@@ ROGUE MODE // 2020.03.13 @ 15:01:42 Player: int Ascended=0; Result: Establishing 0b11! Performance ------------- Evolutions (9) 4500 Regions Visited (43) 8600 Robots Destroyed (1013) 5065 Value Destroyed (59871) 59871 Prototype IDs (255) 5100 Alien Tech Used (13) 2600 Bonus (93935) 93935 TOTAL SCORE: 179671 Bonus ------- Triggered High Security 500 High Alert Combat Kills 25843 Follower Combat Kills 5036 Network Hubs Disabled 400 Met Data Miner 300 Used Data Conduit 3000 Met Imprinter 300 Triggered Deep Caves Wall 1000 Exposed GOLEM Chamber 1500 Met Warlord at Base 500 MAIN.C Attacked Warlord 500 Built Enhanced Grunts 300 A7 Reached Mainframe 300 Met R17 at Cetus 500 Found Hidden Lab 3000 Decrypted A0 Command 3000 Met Warlord at Research 2000 Scanned by Researcher 500 Pursued by Intercept 4500 Recovered Sigix Corpse 1000 Destroyed MAIN.C Guards 500 Met MAIN.C 5000 Hacked MAIN.C 300 Destroyed MAIN.C Shell 5000 Destroyed MAIN.C 10000 Met Architect 300 Started Test 138-B 500 Destroyed A8 300 Destroyed A6 400 Destroyed A4 700 Destroyed A3 800 Destroyed A2 1000 Destroyed Architect 15000 Win 3000 Friendly Fire -2844 Cogmind --------- Core Integrity 628/1600 Matter 270/300 Energy 560/600 System Corruption 0% Temperature Cool (32) Movement Hovering (25) Location 0b11 Command Parts ------- > --- POWER (2) -------- Improved Quantum Reactor Improved Quantum Reactor > --- PROPULSION (6) --- Cooled Antigrav System Cooled Antigrav System Combat Antigrav System Combat Antigrav System Combat Antigrav System Combat Antigrav System > --- UTILITY (16) ----- Experimental Cooling System Large Storage Unit Large Storage Unit Large Storage Unit ST Field Compressor Experimental Targeting Computer Experimental Targeting Computer Experimental Target Analyzer Advanced Particle Accelerator Experimental Weapon Cycler Experimental Powered Armor Experimental Powered Armor Experimental Powered Armor Experimental Focal Shield Thermal Barrier Improved Energy Mantle > --- WEAPON (2) ------- EMDS > --- INVENTORY (22) --- Improved Quantum Reactor Improved Quantum Reactor Cooled Antigrav System Cooled Antigrav System Cooled Antigrav System Cooled Antigrav System Experimental Energy Well (1000) Zionite Biocell (731) Experimental Matter Compressor (500) Advanced Particle Charger High-powered Transdimensional Reconstructor Integrity Redistributor Enhanced Nova Cannon Linked Autogun Hypervelocity Linear Accelerator Hypervelocity Linear Accelerator Sigix Corpse Peak State ------------ > --- POWER ------------ Improved Quantum Reactor Improved Quantum Reactor > --- PROPULSION ------- Cooled Antigrav System Cooled Antigrav System Cooled Antigrav System Cooled Antigrav System Combat Antigrav System Combat Antigrav System > --- UTILITY ---------- Experimental Cooling System Large Storage Unit Large Storage Unit Large Storage Unit Dimensional Manipulator ST Field Compressor Experimental Targeting Computer Experimental Target Analyzer Advanced Particle Accelerator Experimental Weapon Cycler Layered Medium Armor Plating Experimental Powered Armor Experimental Powered Armor Experimental Focal Shield Thermal Barrier Improved Energy Mantle > --- WEAPON ----------- EMDS > --- INVENTORY -------- Improved Quantum Reactor Improved Quantum Reactor Cooled Antigrav System Cooled Antigrav System Cooled Antigrav System Cooled Antigrav System Combat Antigrav System Combat Antigrav System Experimental Energy Well Zionite Biocell Experimental Matter Compressor Advanced Particle Charger High-powered Transdimensional Reconstructor High-powered Transdimensional Reconstructor Integrity Redistributor Neutron Cannon Neutron Cannon Enhanced Nova Cannon Linked Autogun Hypervelocity Linear Accelerator Hypervelocity Linear Accelerator [Rating: 231] Favorites ----------- Power Light Angular Momentum Engine Engine Light Angular Momentum Engine Power Core Light Nuclear Core Reactor Antimatter Reactor Propulsion Cooled Antigrav System Treads Advanced Treads Leg Enhanced Flexi-carbon Leg Wheel Wheel Hover Unit Cooled Antigrav System Utility Large Storage Unit Device Experimental Sensor Array Storage Large Storage Unit Processor Advanced Terrain Scan Processor Hackware Advanced Hacking Suite Protection Damper Plating Weapon Long-range Missile Launcher Energy Gun Shock Rifle Energy Cannon Assembled Focal Cannon Ballistic Gun 8R-AWN's Boregun Ballistic Cannon Heavy Flak Cannon Launcher Long-range Missile Launcher Special Weapon Experimental Remote Datajack Impact Weapon Core Stripper Slashing Weapon Makeshift Sword Special Melee Weapon Improved Datajack Build | -11 -10 -10 -9 -9 -9 -8 -8 -7 -7 -7 -7 -7 -7 -6 -6 -6 -6 -6 -6 -5 -5 -5 -5 -5 -5 -5 -5 -4 -4 -4 -4 -4 -4 -3 -3 -3 -3 -2 -2 -2 -1 -1 -1 ------- Run | Scr Mat Min Mat Min Exi Min Mat Fac Was Fac Low Low Dat Pro Fac Low Low Zio Dee Pro Fac Was Fac Ext Cet Arc Hub Fac Was Fac Upp Upp War Pro Res Arm Lab Res Qua Sec Acc Com Ac0 Slots Evolved 18 | . . . 2 . . . 2 2 . . . . . . 2 . . . . . 2 . . . . . . 2 . . . . . . 2 . . 2 . . 2 . . Power . | . . . . . . . . . . . . . . . . . . . . . . . . . . . . . . . . . . . . . . . . . . . . Propulsion 4 | . . . . . . . . 1 . . . . . . . . . . . . 1 . . . . . . 2 . . . . . . . . . . . . . . . Utility 14 | . . . 2 . . . 2 1 . . . . . . 2 . . . . . 1 . . . . . . . . . . . . . 2 . . 2 . . 2 . . Weapon . | . . . . . . . . . . . . . . . . . . . . . . . . . . . . . . . . . . . . . . . . . . . . Parts Attached 1027 | 7 14 4 13 3 31 6 42 12 10 32 26 12 14 28 28 7 35 19 30 . 24 4 22 23 8 5 9 17 6 33 3 . 8 5 33 11 13 61 38 91 11 118 111 Power 31 | 1 1 1 1 . 2 1 1 . 1 1 . 3 1 1 1 . 2 1 . . . . . . . . . . . . . . . . 1 . . 2 1 . . 2 6 Engine 11 | 1 . 1 1 . 2 1 1 . . . . . . . 1 . 2 1 . . . . . . . . . . . . . . . . . . . . . . . . . Core 2 | . 1 . . . . . . . . . . . . . . . . . . . . . . . . . . . . . . . . . . . . 1 . . . . . Reactor 18 | . . . . . . . . . 1 1 . 3 1 1 . . . . . . . . . . . . . . . . . . . . 1 . . 1 1 . . 2 6 Propulsion 118 | 2 2 2 1 . 5 . . 5 . 5 1 1 4 1 4 . 2 . 4 . 5 . 4 . 2 . 2 6 . 5 . . 1 . 6 . . 6 4 12 . 8 18 Treads 17 | 2 2 2 1 . 2 . . 1 . . . . . . 1 . . . . . 1 . 1 . . . 1 1 . 1 . . 1 . . . . . . . . . . Leg 26 | . . . . . 3 . . . . . . . 3 1 3 . 2 . 3 . 4 . 3 . 2 . . 2 . . . . . . . . . . . . . . . Wheel 20 | . . . . . . . . 4 . 5 1 1 1 . . . . . . . . . . . . . 1 3 . 4 . . . . . . . . . . . . . Hover 55 | . . . . . . . . . . . . . . . . . . . 1 . . . . . . . . . . . . . . . 6 . . 6 4 12 . 8 18 Flight . | . . . . . . . . . . . . . . . . . . . . . . . . . . . . . . . . . . . . . . . . . . . . Utility 457 | 2 3 1 4 1 15 . 26 3 8 17 13 3 6 8 12 5 18 3 20 . 13 3 12 18 1 5 4 6 5 16 . . . . 13 2 8 29 18 48 5 39 44 Device 284 | 1 2 1 2 . 6 . 11 1 6 11 7 3 3 6 5 4 14 2 13 . 5 3 6 10 1 4 2 3 1 10 . . . . 7 2 4 19 12 37 3 27 30 Storage 32 | 1 1 . 1 1 5 . 1 . . . 2 . 1 . . . 1 1 1 . 2 . 2 7 . . . 1 . . . . . . . . . 1 . . . 2 1 Processor 16 | . . . 1 . . . 2 1 . . 2 . . . . . . . . . 3 . . . . . . . . . . . . . . . 1 . . 1 1 3 1 Hackware 5 | . . . . . . . 1 . . 1 . . . . . . . . . . . . . . . . . . . 1 . . . . . . 1 1 . . . . . Protection 120 | . . . . . 4 . 11 1 2 5 2 . 2 2 7 1 3 . 6 . 3 . 4 1 . 1 2 2 4 5 . . . . 6 . 2 8 6 10 1 7 12 Artifact . | . . . . . . . . . . . . . . . . . . . . . . . . . . . . . . . . . . . . . . . . . . . . Weapon 421 | 2 8 . 7 2 9 5 15 4 1 9 12 5 3 18 11 2 13 15 6 . 6 1 6 5 5 . 3 5 1 12 3 . 7 5 13 9 5 24 15 31 6 69 43 Energy Gun 33 | 2 . . . . 2 . . . . . . . 3 . 2 . 2 3 5 . . . . . . . . . . . . . 1 . . . 2 2 . 1 . 5 3 Energy Cannon 203 | . 8 . 5 1 4 2 8 1 . 6 3 . . 5 3 1 2 . . . 2 1 4 3 2 . . 2 . 7 2 . 2 3 9 6 2 13 11 20 3 43 19 Ballistic Gun 62 | . . . . . 1 . 1 1 1 . 2 3 . 4 2 . 2 5 . . 2 . 1 . . . 3 1 1 5 . . . 1 3 . 1 7 1 3 1 3 7 Ballistic Cannon 20 | . . . . . . . 2 . . . 2 . . 2 2 . 4 3 . . . . 1 . . . . 1 . . . . . . . . . . . . . . 3 Launcher 55 | . . . 2 1 2 3 4 . . 3 3 . . 4 2 1 3 3 1 . 1 . . . 2 . . . . . 1 . 3 1 . 3 . . 1 3 . 8 . Special Weapon 11 | . . . . . . . . . . . 1 . . . . . . 1 . . 1 . . 2 1 . . 1 . . . . 1 . 1 . . 1 . . . 1 . Impact Weapon 11 | . . . . . . . . . . . . . . . . . . . . . . . . . . . . . . . . . . . . . . . 1 1 . 1 8 Slashing Weapon 25 | . . . . . . . . 1 . . 1 2 . 3 . . . . . . . . . . . . . . . . . . . . . . . 1 1 3 2 8 3 Piercing Weapon . | . . . . . . . . . . . . . . . . . . . . . . . . . . . . . . . . . . . . . . . . . . . . Special Melee Weapon 1 | . . . . . . . . 1 . . . . . . . . . . . . . . . . . . . . . . . . . . . . . . . . . . . Unidentified Prototypes 48 | . . . . . 7 . . 1 . . . 1 . . . . . . 7 . 2 . 1 . . . . . . . . . 1 . . . 5 2 2 4 . 6 9 Parts Lost 112 | . 6 1 . . 3 2 5 1 . 3 2 . 4 8 5 . 5 1 1 . 1 . . . 1 . 2 . . 2 . . . . 1 . . 8 1 4 . 12 33 Power 15 | . 1 1 . . 1 1 . . . . . . 1 1 1 . 2 1 . . . . . . . . . . . . . . . . 1 . . 1 . . . 1 2 Propulsion 30 | . . . . . 1 . . 1 . 1 . . 1 1 1 . 1 . . . . . . . 1 . . . . 1 . . . . . . . 3 . 1 . 7 10 Utility 39 | . 1 . . . 1 . 1 . . 1 1 . 1 3 2 . 1 . . . 1 . . . . . 1 . . . . . . . . . . 3 1 2 . 2 17 Weapon 28 | . 4 . . . . 1 4 . . 1 1 . 1 3 1 . 1 . 1 . . . . . . . 1 . . 1 . . . . . . . 1 . 1 . 2 4 Highest Loss Streak 19 | . 3 1 . . 3 1 2 1 . 1 1 . 4 4 2 . 2 1 1 . 1 . . . 1 . 2 . . 1 . . . . 1 . . 8 1 2 . 3 19 Average Slot Usage (%) 88 | . 96 100 99 100 87 87 88 85 89 88 93 93 88 92 89 87 85 86 89 87 84 87 84 86 87 81 81 78 80 84 85 85 82 80 81 86 82 87 89 85 87 87 86 Engine 5 | . 5 8 11 11 10 10 9 7 2 . . . . . 3 6 7 11 5 . . . . . . . . . . . . . . . . . . . . . . . . Reactor 3 | . . . . . . . . . 4 7 7 12 13 13 8 6 3 . 3 6 5 5 5 5 5 5 5 5 5 5 5 5 5 5 4 4 4 3 4 4 3 5 6 Treads 2 | . 27 28 21 22 20 . . 2 . . . . . . . . . . . . . . . . . . 2 1 . . . . 2 5 1 . . . . . . . . Leg 11 | . . . . . 1 22 18 6 . . . . 1 20 17 18 17 18 17 18 20 22 21 22 21 19 16 12 10 10 10 10 4 . . . . . . . . . . Wheel 3 | . . . . . . . . 11 23 22 22 15 12 . . . . . . . . . . . . . . 10 15 14 15 15 15 15 4 . . . . . . . . Hover 3 | . . . . . . . . . . . . . . . . . . . . . . . . . . . . . . . . . . . 17 27 27 24 24 24 23 22 20 Device 11 | . 12 14 21 11 10 11 13 15 15 21 20 14 10 9 12 12 11 6 12 12 10 10 10 14 11 8 4 7 . 7 10 10 10 10 11 13 7 12 14 17 22 19 20 Storage 23 | . 14 14 22 32 20 22 18 15 15 15 19 21 19 21 18 18 18 25 27 31 27 27 27 28 33 33 29 27 30 30 30 30 30 30 27 27 27 24 20 20 19 16 11 Processor 5 | . . . . . . . 6 7 11 . 8 14 14 7 6 6 6 6 5 . 4 5 5 5 5 5 5 5 5 5 5 5 5 5 4 4 4 8 8 7 11 12 12 Protection 3 | . . . . . 1 . 4 3 . 4 . . 2 6 9 6 6 6 2 6 5 5 5 . . . 5 1 5 3 5 5 5 5 4 4 6 4 4 1 . 3 9 Energy Cannon 6 | . 25 28 22 22 17 16 16 15 . 14 7 4 . 2 4 5 2 . 5 12 9 . 4 8 10 8 4 4 . 4 4 5 1 3 3 3 1 3 2 3 2 2 1 Ballistic Gun 1 | . . . . . . . . . 14 . 1 5 2 3 . . 1 3 . . . 10 . . . . 5 . 4 1 . . . . . . 2 . . . . . . Launcher 2 | . . . . . . 5 . . . . . . . 3 . 6 3 5 3 . . . . . . . . . . . . . 2 1 . . . . . . . . . Naked Turns . | . . . . . . . . . . . . . . . . . . . . . . . . . . . . . . . . . . . . . . . . . . . . Heaviest Build 229 | 13 28 28 54 68 132 132 154 156 185 188 188 127 135 143 170 163 170 191 191 187 229 164 185 154 154 172 196 161 182 178 150 150 150 150 180 153 189 192 187 195 189 205 178 Greatest Support 190 | 40 40 42 42 42 60 60 60 60 36 36 30 38 84 84 84 72 72 64 88 88 103 103 108 108 108 108 108 108 60 60 48 48 48 48 152 142 142 182 160 190 190 190 190 Greatest Overweight (x) 9 | 1 . . 2 1 4 2 2 5 5 9 9 3 3 1 3 2 3 2 3 2 2 1 1 1 1 1 5 5 3 3 3 3 3 3 3 1 1 3 2 5 1 1 1 Average Overweight (x) 1 | . . . . 1 2 2 2 3 3 4 3 2 2 1 1 2 1 2 1 2 1 1 1 1 1 1 1 1 3 2 3 3 2 2 1 . . 1 . . . . . Largest Inventory Capacity 52 | 6 10 10 16 22 36 32 52 32 32 32 32 26 26 26 26 26 30 34 34 34 34 30 30 34 34 34 34 34 34 34 34 34 34 34 34 34 34 34 34 34 34 34 28 Average Capacity 29 | 5 9 10 15 21 29 32 32 32 32 32 27 26 24 26 26 26 26 30 34 34 32 30 29 28 34 34 30 30 34 34 34 34 34 34 34 34 34 34 34 34 34 30 21 Most Carried 34 | 6 10 10 16 21 32 32 32 32 32 32 32 26 26 26 26 26 30 34 34 34 34 30 30 34 34 34 34 30 33 34 34 34 34 34 34 34 34 34 34 34 34 34 28 Average Carried 28 | 4 8 9 15 20 27 31 31 31 31 31 26 25 23 25 25 25 25 30 33 33 32 29 28 28 33 33 28 27 31 33 33 34 33 33 32 33 33 33 33 32 33 27 19 Final Capacity 34 | 6 10 10 16 22 32 32 32 32 32 32 26 26 26 26 26 26 30 34 34 34 30 30 28 34 34 34 28 34 34 34 34 34 34 34 34 34 34 34 34 34 34 28 22 Final Carried 34 | 6 10 10 16 21 32 32 32 32 31 32 26 26 26 24 26 26 30 34 34 34 30 30 28 34 34 32 28 30 33 34 34 34 34 34 33 34 34 34 34 34 34 27 18 Class Distribution -------------------- 49% | Hauler-Mutant 26% | Scavenger-Mutant 9% | Hauler-Golem 5% | Mutant 4% | Hauler-Skirmisher Dominant Class ---------------- Mutant | -10/Materials Mutant | -10/Mines Mutant | -9/Materials Hauler-Mutant | -9/Mines Hauler-Mutant | -9/Exiles Hauler-Mutant | -8/Mines Hauler-Mutant | -8/Materials Hauler-Mutant | -7/Factory Hauler-Mutant | -7/Waste Hauler-Mutant | -7/Factory Hauler-Skirmisher | -7/Lower Caves Hauler-Assassin | -7/Lower Caves Hauler-Assassin | -7/Data Miner Hauler-Mutant | -6/Proximity Caves Scavenger-Mutant | -6/Factory Scavenger-Mutant | -6/Lower Caves Hauler-Mutant | -6/Lower Caves Hauler-Mutant | -6/Zion Hauler-Golem | -6/Deep Caves Hauler-Golem | -5/Proximity Caves Hauler-Golem | -5/Factory Hauler-Mutant | -5/Waste Hauler-Mutant | -5/Factory Hauler-Mutant | -5/Extension Hauler-Golem | -5/Cetus Hauler-Mutant | -5/Archives Hauler-Mutant | -5/Hub_04(d) Hauler-Mutant | -4/Factory Hauler-Mutant | -4/Waste Hauler-Mutant | -4/Factory Scavenger-Mutant | -4/Upper Caves Scavenger-Mutant | -4/Upper Caves Scavenger-Mutant | -4/Warlord Scavenger-Mutant | -3/Proximity Caves Scavenger-Mutant | -3/Research Scavenger-Mutant | -3/Armory Scavenger-Mutant | -3/Lab Scavenger-Mutant | -2/Research Scavenger-Mutant | -2/Quarantine Scavenger-Mutant | -2/Section 7 Scavenger-Mutant | -1/Access Scavenger-Mutant | -1/Command Scavenger-Mutant | -1/Access_0 Resources | -11 -10 -10 -9 -9 -9 -8 -8 -7 -7 -7 -7 -7 -7 -6 -6 -6 -6 -6 -6 -5 -5 -5 -5 -5 -5 -5 -5 -4 -4 -4 -4 -4 -4 -3 -3 -3 -3 -2 -2 -2 -1 -1 -1 ----------- Run | Scr Mat Min Mat Min Exi Min Mat Fac Was Fac Low Low Dat Pro Fac Low Low Zio Dee Pro Fac Was Fac Ext Cet Arc Hub Fac Was Fac Upp Upp War Pro Res Arm Lab Res Qua Sec Acc Com Ac0 Matter Collected 35926 | 267 122 36 153 30 337 289 660 63 782 524 356 404 120 532 636 229 1352 1942 860 30 217 488 432 832 109 30 686 553 864 1052 144 130 157 299 1435 1001 564 2964 1318 2229 664 5820 4214 Remotely 208 | 168 30 . . . . . . . . . . . . . . . . . . . . . . . . . . . . . . . . . . . . . . . . 10 . Salvage Created 56121 | 56 626 134 906 303 158 283 1708 131 1938 1113 181 605 404 819 644 352 657 1685 2091 . 1244 968 706 2681 474 191 1949 341 1395 1551 141 324 . 43 1958 1174 65 1672 1532 4747 1051 11917 5203 Parts 1917 | 4 44 8 59 12 9 20 103 11 50 56 8 27 16 35 35 10 19 93 31 . 46 22 24 89 19 6 110 14 43 42 8 7 . 2 91 28 2 71 58 137 22 239 187 Haulers Intercepted 30 | . 1 . 3 . . . 5 . . 1 . . . 1 . . . . . . 3 . 1 8 . . . 1 . 2 . . . . 2 . . 1 . 1 . . . Recyclers Shooed 12 | . 3 . 1 1 . . 1 . . . . . . . 2 . . . . . . . . . . . . . . . . . . . 1 . . . . 1 . 2 . Parts Field Recycled . | . . . . . . . . . . . . . . . . . . . . . . . . . . . . . . . . . . . . . . . . . . . . Retrieved Matter . | . . . . . . . . . . . . . . . . . . . . . . . . . . . . . . . . . . . . . . . . . . . . Parts Self-Destructed 130 | . . . . . . . . . . . 10 22 . 23 . 8 19 4 . . . . . . . . . . . . 6 . 28 10 . . . . . . . . . Prevented 15 | . . . . . . . . . . . 3 . . . . . . . . . . . . . . . . . . . 2 7 2 1 . . . . . . . . . Kills | -11 -10 -10 -9 -9 -9 -8 -8 -7 -7 -7 -7 -7 -7 -6 -6 -6 -6 -6 -6 -5 -5 -5 -5 -5 -5 -5 -5 -4 -4 -4 -4 -4 -4 -3 -3 -3 -3 -2 -2 -2 -1 -1 -1 ------- Run | Scr Mat Min Mat Min Exi Min Mat Fac Was Fac Low Low Dat Pro Fac Low Low Zio Dee Pro Fac Was Fac Ext Cet Arc Hub Fac Was Fac Upp Upp War Pro Res Arm Lab Res Qua Sec Acc Com Ac0 Combat Hostiles Destroyed 772 | . 14 2 19 3 4 13 32 . 6 24 4 8 4 26 14 8 26 12 19 . 15 1 6 29 9 2 15 2 5 15 5 4 . 3 22 23 1 20 17 57 9 220 54 Melee 15 | . . . . . . . . . . . . . . . . . . . . . . . . . . . . . . . . . . . . . . 1 2 8 . 1 3 Guns 86 | . . . . . 1 . 2 . 6 . . 8 . 5 2 . 4 5 2 . . 1 1 . . . 15 1 5 5 . . . . 6 . 1 4 2 3 1 3 3 Cannons 261 | . 14 1 12 3 . 4 17 . . 16 2 . . 3 6 2 3 . . . 9 . 5 23 6 2 . . . 2 1 2 . . 9 8 . 10 8 23 4 48 18 AOE 256 | . . . 7 . 2 9 13 . . 8 2 . . 17 6 6 19 6 11 . 6 . . . . . . . . . 4 . . 3 . 10 . . 4 8 . 115 . Classes Destroyed 36 | 2 5 1 1 2 1 1 2 . 1 1 . 3 . . 1 . . 3 3 . . . . 1 . . . . . . . . . . 1 . . 3 2 . . 2 . Worker 39 | . . 1 1 . . 1 1 2 . . . . . . 4 . . . . . . . 1 . . . 8 . . 4 . . . . 3 . . . 3 . 1 9 . Builder 25 | . 1 . 2 . . 1 4 1 . 3 . . . . 2 . . . . . 1 . . 1 . . 7 . . . . . . . 1 . . . . 1 . . . Tunneler 4 | 1 . 1 . . . . . . . 1 . . . . . . . . . . . . . . . . 1 . . . . . . . . . . . . . . . . Hauler 30 | . 1 . 3 . . . 5 . . 1 . . . 1 . . . . . . 3 . 1 8 . . . 1 . 2 . . . . 2 . . 1 . 1 . . . Recycler 25 | 1 1 . 1 2 . . 3 1 . . . . . . 1 . . . . . 1 . 1 . . . 2 1 . 1 . . . . 1 . . 1 . 2 1 4 . Minesweeper 3 | . . . . . . . . . . . . 1 . . . . 1 . . . . . . . . . . . . . 1 . . . . . . . . . . . . Mechanic 2 | . . . . . . . . . . . . . . . . . . . . . . . . . . . . . . . . . . . . . . . . . . 2 . Operator 8 | . . . . . . . 1 . . . . . . . . . . . . . 1 . . . . 1 . . . 1 . . . . . . . . 1 2 . 1 . Drone 1 | . . . . . . . . . . . . . . . . . . . . . . . . . . . . . . . . . . . 1 . . . . . . . . Watcher 31 | . 1 . 1 . . . 5 . . . . . . . . . . . . . 1 . 2 3 . . 2 . . . . . . . . 3 . 2 1 2 6 2 . Swarmer 118 | . 6 . 6 . . 7 11 . . . 1 . . 10 3 4 5 . . . 5 . . 3 4 . . . . . 4 . . 3 . 10 . . 4 4 2 26 . Saboteur 4 | . . . . . . . . . . . . . . . . . . . . . . . . . . . . . . . . . . . . . . 1 . . . 3 . Grunt 222 | . 8 2 8 1 . 4 15 . . 14 1 7 . 12 2 3 18 . . . 5 . . 12 . . 3 1 . 6 1 3 . . 6 7 . 5 . 9 4 65 . Brawler 29 | . . . . . . . 1 . . 2 . . . 1 . . . . . . . . . 1 . . . . . . . . . . . 2 . 1 . 2 . 19 . Duelist 21 | . . . . 1 . . . . . 2 . 1 . . 2 1 1 . . . . . . 1 . . . . . . . . . . . . . . . 1 . 11 . Protector 9 | . . . . . . . . . . . . . . . 1 . . . . . . . . . . . 2 . . . . . . . . . . . . . . 6 . Researcher 3 | . . . . . . . . . . . . 1 . . . . . . . . . . . . . . . . . . . . . . . . . . . 2 . . . Sentry 43 | . . . 5 . . . 5 . . 2 1 . . 1 2 . 1 . . . 3 . . 8 . 2 1 . . . . 1 . . . 3 . 1 . 4 2 1 . Demolisher 3 | . . . . 1 . . . . . . . . . . . . . . . . . . . . . . . . . . . . . . . 1 . 1 . . . . . Specialist 7 | . . . . . . . . . . . . . . . . . . . . . . . . . . . . . . . . . . . . . . . 3 . . 4 . Hunter 77 | . . . . . . 2 . . . . 1 . . 2 1 . 1 . . . . . 2 . 1 . . . . 4 . . . . 8 . . . . 2 . 53 . Programmer 49 | . . . . . . . . . . 4 . . . . 1 . . . . . . . 2 2 . . . 1 . 3 . . . . 5 . . 2 5 5 1 18 . Behemoth 2 | . . . . . . . . . . . . . . . . . . . . . . . . 1 . . . . . . . . . . . . . . . . . 1 . Compactor 12 | . . . . . . . . . 6 . . . . . . . . . . . . 1 . . . . . . 5 . . . . . . . . . . . . . . Cetus Guard 4 | . . . . . . . . . . . . . . . . . . . . . . . . . 4 . . . . . . . . . . . . . . . . . . S7 Guard 3 | . . . . . . . . . . . . . . . . . . . . . . . . . . . . . . . . . . . . . . . . 3 . . . M Guard 2 | . . . . . . . . . . . . . . . . . . . . . . . . . . . . . . . . . . . . . . . . . . 2 . Enhanced Grunt 30 | . . . . . . . . . . . . . 4 . . . . . . . . . . . . . . . . . . . . . . . . . . . . . 26 Enhanced Sentry 5 | . . . . . . . . . . . . . . . . . . . . . . . . . . . . . . . . . . . . . . . . . . . 5 Enhanced Hunter 7 | . . . . . . . . . . . . . . . . . . . . . . . . . . . . . . . . . . . . . . . . . . . 7 Enhanced Programmer 10 | . . . . . . . . . . . . . . . . . . . . . . . . . . . . . . . . . . . . . . . . . . . 10 Lightning 9 | . . . . . . . . . . . . . . . . . . . . . . . . . . . 9 . . . . . . . . . . . . . . . . Tracker 25 | . . . . . . . . . . . . . . . 1 . . . . . 1 . 1 . . . . . . 1 . . . . 1 . . 5 2 13 . . . Combat Programmer 25 | . . . . . . . . . . . . . . . 1 . . . . . 1 . 1 . . . . . . 1 . . . . 2 . . 2 2 14 . 1 . Investigator 1 | . . . . . . . . . . . . . . . . . . . . . . . . . . . . . . . . . . . . . . . . . . 1 . Striker 3 | . . . . . . . . . . . . . . . . . . . . . . . . . . . . . . . . . . . . . . 1 . . . 2 . Executioner 5 | . . . . . . . . . . . . . . . . . . . . . . . . . . . . . . . . . . . . . . 1 . . . 4 . Alpha 7 2 | . . . . . . . . . . . . . . . . . . . . . . . . . . . . . . . . . . . . . . . . . . 2 . Fortress 1 | . . . . . . . . . . . . . . . . . . . . . . . . . . . . . . . . . . . . . . . 1 . . . . Zionite 44 | . . . . . . . . . . . . . . . . . . 44 . . . . . . . . . . . . . . . . . . . . . . . . . Z-Technician 5 | . . . . . . . . . . . . . . . . . . . 5 . . . . . . . . . . . . . . . . . . . . . . . . Z-Light 9 | . . . . . . . . . . . . . . . . . . . 9 . . . . . . . . . . . . . . . . . . . . . . . . Packrat 3 | . . . . . . . . . . . . . . . . 3 . . . . . . . . . . . . . . . . . . . . . . . . . . . Samaritan 1 | . . . . . . . . . . . . 1 . . . . . . . . . . . . . . . . . . . . . . . . . . . . . . . Tinkerer 3 | . . . . . . . . . . . . . . . . . . 3 . . . . . . . . . . . . . . . . . . . . . . . . . Assembler 2 | . . . . . . . . . . . . . . . . . . . 2 . . . . . . . . . . . . . . . . . . . . . . . . Assembled 10 | . . . . . 7 . . . . . . . . . . . . . 3 . . . . . . . . . . . . . . . . . . . . . . . . Golem 7 | . . . . . . . . . . . . . . . . . . . 7 . . . . . . . . . . . . . . . . . . . . . . . . Wasp 1 | . . . . . . . . . . . . . . . . . . 1 . . . . . . . . . . . . . . . . . . . . . . . . . Thug 6 | . . . . . . . . . . . . . . . . . . 1 . . . . . 2 . . . . . 2 . . . . . . . . . . . 1 . Savage 2 | . . . . . . . . . . . . . . . . . . 1 . . . . . . . . . . . . . . . . . . . . . . . 1 . Butcher 4 | . . . . . . . . . . . . . . . . . . 2 . . . . . . 1 . . . . . . . . . . . . . . . . 1 . Mutant 6 | . . . . . . . . . . . . . . . . . . 6 . . . . . . . . . . . . . . . . . . . . . . . . . Best Kill Streak 80 | 2 5 2 9 2 2 4 16 1 1 6 3 3 2 7 9 4 5 10 6 . 5 1 3 5 4 3 15 2 2 7 4 3 . 3 15 4 1 8 6 8 8 80 14 Combat Bots Only 76 | . 5 1 6 2 2 4 7 . 1 6 3 3 2 7 5 4 5 8 6 . 5 1 3 5 4 2 8 1 2 6 4 3 . 3 6 4 1 5 4 8 6 76 14 Max Kills in Single Turn 10 | 1 1 2 6 1 4 2 3 1 1 4 1 2 1 3 3 4 3 5 2 . 3 1 1 2 1 1 10 1 1 2 3 1 . 2 1 2 1 1 2 3 1 8 1 Gunslinging . | . . . . . . . . . . . . . . . . . . . . . . . . . . . . . . . . . . . . . . . . . . . . Exploded 8 | . . . 4 . 1 2 3 . . 4 1 . . 3 2 4 3 5 2 . 3 . . . . . . . . . 3 . . 2 . 2 . . 2 3 . 8 . Melee 1 | . . . . . . . . . . . . . . . . . . . . . . . . . . . . . . . . . . . . . . 1 1 1 . 1 1 Uniques/NPCs Destroyed 10 | . . . . . 1 . . . . . . . . . . . . 1 . . . . . . . . . . . . . . . . . . 1 . . . . 1 6 8R-AWN (-9/Exiles) Imprinter (-6/Zion) A5 (-3/Lab) MAIN.C Shell (-1/Command) MAIN.C (-1/Command) A6 (-1/Access_0) A8 (-1/Access_0) A2 (-1/Access_0) A4 (-1/Access_0) Architect (-1/Access_0) A3 (-1/Access_0) Combat | -11 -10 -10 -9 -9 -9 -8 -8 -7 -7 -7 -7 -7 -7 -6 -6 -6 -6 -6 -6 -5 -5 -5 -5 -5 -5 -5 -5 -4 -4 -4 -4 -4 -4 -3 -3 -3 -3 -2 -2 -2 -1 -1 -1 -------- Run | Scr Mat Min Mat Min Exi Min Mat Fac Was Fac Low Low Dat Pro Fac Low Low Zio Dee Pro Fac Was Fac Ext Cet Arc Hub Fac Was Fac Upp Upp War Pro Res Arm Lab Res Qua Sec Acc Com Ac0 Damage Taken 35676 | . 787 137 178 15 472 455 1296 . . 664 312 . 935 1476 1471 91 1099 480 626 . 809 . 723 419 486 269 2498 251 . 982 . . . . 1424 202 5 3138 895 2515 70 3184 7312 Core 2828 | . 106 . 28 . 18 97 125 . . 67 . . 151 135 84 . 19 18 54 . 42 . . 70 62 30 92 39 . 45 . . . . 128 13 . 341 78 205 . 147 634 Absorbed by Shields 9519 | . . . 70 . . . . . . . . . . . . . . . . . . . . . 306 . . . . . . . . . . 189 5 995 . 1950 71 3094 2839 Reduced by Siege Mode 111 | . . . . . . . . . . . . . . . 12 . . . . . 5 . 36 . . . 41 . . 17 . . . . . . . . . . . . . Core Remaining (%) 73 | 100 . 57 . . . 64 77 . . . . . . 49 . . . . . 79 . . . . . . 70 . . . . . . 92 . . 89 . . 91 . . 39 Volleys Fired 2985 | 3 56 8 39 15 108 31 106 7 48 66 10 22 24 51 77 25 74 130 134 9 51 34 48 150 37 8 66 22 102 79 8 13 13 8 106 71 36 118 65 179 37 474 217 Largest 2 | 2 2 2 2 2 2 2 2 2 2 2 2 2 2 2 2 1 2 2 2 1 2 2 2 2 2 2 2 1 1 1 1 1 1 1 1 1 1 1 1 1 1 1 2 Hottest 160 | 90 120 120 150 150 90 150 150 150 60 155 155 60 100 155 153 90 153 110 110 25 90 60 143 70 119 50 60 94 57 110 70 70 110 46 110 120 120 120 120 120 70 120 160 Shots Fired 3977 | 6 93 16 73 29 213 48 190 14 93 121 20 44 48 76 96 25 103 243 235 9 87 68 55 227 52 16 127 22 102 79 8 13 13 8 106 71 36 118 62 175 37 474 226 Gun 1477 | 6 . . . . 210 . 13 . 93 . 5 44 48 26 21 . 38 225 111 . . 68 11 . . . 107 5 90 27 . . . 6 38 . 32 53 18 17 6 71 88 Cannon 2246 | . 93 16 71 29 . 38 163 14 . 113 11 . . 31 69 18 41 2 101 9 85 . 44 202 46 16 20 15 12 52 6 13 2 . 61 61 4 65 40 153 31 361 138 Launcher 204 | . . . 2 . 3 10 14 . . 8 4 . . 19 6 7 24 14 23 . 2 . . . 4 . . . . . 2 . . 2 . 10 . . 4 5 . 41 . Special 50 | . . . . . . . . . . . . . . . . . . 2 . . . . . 25 2 . . 2 . . . . 11 . 7 . . . . . . 1 . Kinetic 1111 | . . . . . . . 19 . 93 . 5 44 . 40 25 . 34 211 . . . 68 18 . . . 107 6 102 27 . . . 6 38 . 32 53 18 17 6 36 106 Thermal 1469 | 6 93 16 71 29 . 38 157 14 . 113 11 . . 17 55 18 45 2 119 9 85 . 26 167 36 16 20 . . 7 . . 2 . 20 2 3 28 24 76 . 137 7 Explosive 200 | . . . 2 . 3 10 14 . . 8 4 . . 19 6 7 24 14 23 . 2 . . . . . . . . . 2 . . 2 . 10 . . 4 5 . 41 . Electromagnetic 1119 | . . . . . 210 . . . . . . . 48 . 10 . . 14 93 . . . 11 35 14 . . 14 . 45 6 13 . . 48 59 1 37 16 77 31 224 113 Entropic 35 | . . . . . . . . . . . . . . . . . . . . . . . . . . . . . . . . . . . . . . . . . . 35 . Robot Hit Streak 43 | 3 9 9 12 5 26 9 15 5 8 16 12 8 6 17 7 6 8 8 22 . 24 13 24 26 9 16 15 19 16 41 2 4 8 9 27 6 12 40 12 14 23 42 43 Robot Miss Streak 8 | 1 6 1 3 2 3 2 4 2 6 4 2 5 4 5 5 2 8 4 8 . 1 4 4 1 2 1 4 1 2 2 3 2 1 1 6 2 3 3 2 8 1 2 2 Penetration Max 2 | . . . . . . . 1 . . . . 2 . . . . . 1 . . . . . 1 . . 2 . 1 1 . . . . 1 1 . 1 1 1 . 1 1 Secondary Targets 6 | . . . . . . . . . . . . . . . . . . 1 . . . . . . . . 5 . . . . . . . . . . . . . . . . Max Gunslinging Chain 1 | . . . . . . . . . . . . . . . . . . 1 . . . . . . . . 1 . . . . . . . . . . . . . . . . Capacitor 578 | . . . . . . . . . . . . . . . . . . . . . . . . . . . . . . . . . . . . . . 14 17 85 31 394 37 Shots Hit Robots 2782 | 4 52 12 41 15 199 28 110 9 51 73 10 18 31 54 46 14 60 111 145 . 57 50 38 145 26 14 79 17 67 51 2 4 10 6 78 24 30 83 51 175 29 429 234 Core Hits 1869 | 2 22 4 29 8 39 24 73 4 14 47 6 15 11 58 39 17 62 84 116 . 36 6 21 48 16 7 69 7 12 27 7 3 . 8 44 30 12 42 32 86 16 552 114 Critical Hits 476 | . . . . 1 5 . 1 . 26 2 . 15 . 7 3 1 3 52 1 . 1 25 3 7 . . 43 . 43 7 . 2 . . 13 6 . 5 6 27 5 87 79 Critical Kills 139 | . . . . 1 . . . . 6 1 . 7 . 5 1 1 2 24 1 . . 2 2 3 . . 13 . 5 1 . 2 . . 5 2 . 2 2 9 2 20 20 Critical Parts Destroyed 207 | . . . . . . . 1 . 5 1 . 8 . 2 1 . 1 28 . . 1 5 1 2 . . 27 . 4 6 . . . . 8 4 . 3 1 10 3 48 37 Melee Attacks 222 | . . . . . . . . 1 4 . . 20 1 13 . . . . . . . . . . . . . . . . . . . . . . . . 17 86 2 33 45 Kinetic 59 | . . . . . . . . . . . . . . . . . . . . . . . . . . . . . . . . . . . . . . . 2 25 . 2 30 Impact . | . . . . . . . . . . . . . . . . . . . . . . . . . . . . . . . . . . . . . . . . . . . . Slashing 162 | . . . . . . . . . 4 . . 20 1 13 . . . . . . . . . . . . . . . . . . . . . . . . 15 61 2 31 15 Piercing . | . . . . . . . . . . . . . . . . . . . . . . . . . . . . . . . . . . . . . . . . . . . . Sneak Attacks 9 | . . . . . . . . 1 . . . 2 1 . . . . . . . . . . . . . . . . . . . . . . . . . 1 . . 1 3 Combat Hostiles 3 | . . . . . . . . . . . . . . . . . . . . . . . . . . . . . . . . . . . . . . . . . . . 3 Follow-up Attacks . | . . . . . . . . . . . . . . . . . . . . . . . . . . . . . . . . . . . . . . . . . . . . Damage Inflicted 169315 | 53 963 250 1596 397 543 1598 4018 200 1098 3603 413 642 692 3157 2845 1612 4571 3975 7140 . 3782 1070 1752 7740 1684 802 4722 699 1566 3243 437 488 . 688 4466 3553 757 4646 4140 13514 2086 59618 8496 Guns 25002 | 50 . . . . 217 . 290 . 1098 . 85 413 333 248 244 . 478 2056 1306 . . 1070 458 . . . 1804 242 1566 1176 . . . 256 1478 . 757 1882 549 740 319 3279 2608 Cannons 73248 | . 936 192 1084 375 . 674 2524 200 . 1960 186 . . 650 1357 489 611 26 3626 . 2993 . 1294 7740 1241 802 349 457 . 2067 155 488 . . 2942 2201 . 2764 1639 6606 1604 19017 3999 Explosions 56677 | . . . 506 . 326 924 1204 . . 1643 142 . 252 2259 1244 1123 3482 1893 2208 . 789 . . . 443 . 2569 . . . 282 . . 432 . 1352 . . 767 1183 163 31491 . Melee 14164 | . . . . . . . . . . . . 229 107 . . . . . . . . . . . . . . . . . . . . . . . . . 1185 4985 . 5831 1827 Ramming 178 | 3 27 58 6 22 . . . . . . . . . . . . . . . . . . . . . . . . . . . . . . . . . . . . . . 62 Kinetic 24683 | . . . . . . . 391 . 1098 . 85 413 . 469 356 . 374 1916 . . . 1070 555 . . . 1804 242 1566 1176 . . . 256 1478 . 757 1882 627 1966 319 1576 4307 Thermal 40224 | 50 936 192 1084 375 7 674 2423 200 . 2985 186 . 115 429 1124 489 715 77 4120 . 2993 . 518 6484 925 802 624 . . . . . . . 509 . . 781 942 3202 163 6100 . Explosive 50029 | . . . 506 . 319 924 1204 . . 618 142 . . 2259 1244 1123 3482 752 1901 . 569 . . . . . . . . . 282 . . 432 . 1352 . . 767 1183 . 30970 . Electromagnetic 40976 | . . . . . 217 . . . . . . . 470 . 121 . . 1230 1119 . 220 . 679 1256 759 . 2294 457 . 2067 155 488 . . 2479 2201 . 1983 697 3404 1604 13438 3638 Impact . | . . . . . . . . . . . . . . . . . . . . . . . . . . . . . . . . . . . . . . . . . . . . Slashing 11462 | . . . . . . . . . . . . 229 107 . . . . . . . . . . . . . . . . . . . . . . . . . 1107 3759 . 5771 489 Piercing . | . . . . . . . . . . . . . . . . . . . . . . . . . . . . . . . . . . . . . . . . . . . . Entropic 1763 | . . . . . . . . . . . . . . . . . . . . . . . . . . . . . . . . . . . . . . . . . . 1763 . Highest Corruption 22 | . . . . . . . . . 19 19 14 . . . . . . . . . 1 1 1 1 1 1 13 1 1 2 . . 1 . . . 1 18 22 22 . . . Average Corruption 8 | . . . . . . . . . 14 15 7 . . . . . . . . . 1 1 1 1 1 1 9 1 1 1 . . 1 . . . 1 16 19 22 . . . Corruption Purged 29 | . . . . . . . . . 1 10 14 . . . . . . . . . . 1 . . . 1 . . . 2 . . . . . . . . . . . . . Effects 477 | . . . . . . . . . 37 87 27 . . . . . . . . . 1 . . 9 2 1 22 3 . 3 . . . . . . 2 47 71 165 . . . Message Errors 75 | . . . . . . . . . 6 13 7 . . . . . . . . . . . . 3 1 1 3 1 . 2 . . . . . . 1 9 8 20 . . . Matter Fused 62 | . . . . . . . . . 7 13 5 . . . . . . . . . . . . . . . 2 . . . . . . . . . . 8 7 20 . . . Heat Flow Errors 33 | . . . . . . . . . 3 6 2 . . . . . . . . . . . . . . . 3 . . . . . . . . . . 3 7 9 . . . Energy Discharges 32 | . . . . . . . . . 2 6 3 . . . . . . . . . . . . 1 . . 1 1 . 1 . . . . . . . 5 7 5 . . . Parts Rejected 2 | . . . . . . . . . . 1 . . . . . . . . . . . . . . . . 1 . . . . . . . . . . . . . . . . Data Loss (minor) 42 | . . . . . . . . . 2 8 5 . . . . . . . . . 1 . . 3 . . . 1 . . . . . . . . 1 2 6 13 . . . Data Loss (major) 12 | . . . . . . . . . . 3 2 . . . . . . . . . . . . . . . . . . . . . . . . . . 1 2 4 . . . Misfires 7 | . . . . . . . . . 1 2 2 . . . . . . . . . . . . . . . 1 . . . . . . . . . . . 1 . . . . Alerts 2 | . . . . . . . . . . 1 . . . . . . . . . . . . . . . . . . . . . . . . . . . . 1 . . . . Misdirections 73 | . . . . . . . . . 3 11 . . . . . . . . . . . . . . . . 2 . . . . . . . . . . 11 11 35 . . . Targeting Errors 115 | . . . . . . . . . 9 19 1 . . . . . . . . . . . . 1 . . 5 . . . . . . . . . . 8 17 55 . . . Weapon Failures 22 | . . . . . . . . . 4 4 . . . . . . . . . . . . . 1 1 . 4 . . . . . . . . . . . 4 4 . . . Overload Shots . | . . . . . . . . . . . . . . . . . . . . . . . . . . . . . . . . . . . . . . . . . . . . Overflow Damage 8196 | . 12 . 3 . 4 47 88 . . 246 19 . 47 50 167 140 216 75 624 . 170 . 179 467 76 . 206 45 . 87 8 10 . . 105 170 . 319 300 879 11 3426 . Projectiles 3617 | . 12 . 3 . . 4 52 . . 26 . . . 2 70 117 18 . 538 . 147 . 179 467 75 . 38 45 . 87 8 10 . . 105 129 . 319 220 316 11 619 . Explosions 2559 | . . . . . 4 43 36 . . 220 19 . . 48 97 23 198 75 86 . 23 . . . 1 . 168 . . . . . . . . 41 . . 46 106 . 1325 . Melee 2020 | . . . . . . . . . . . . . 47 . . . . . . . . . . . . . . . . . . . . . . . . . 34 457 . 1482 . Knockbacks 25 | . . 1 . . . . 1 . . . . . . 2 8 . 8 . . . . . 4 . . . . . . . . . . . . . . . . . . . 1 Impact 1 | . . 1 . . . . . . . . . . . . . . . . . . . . . . . . . . . . . . . . . . . . . . . . . Kinetic 23 | . . . . . . . 1 . . . . . . 2 7 . 8 . . . . . 4 . . . . . . . . . . . . . . . . . . . 1 Secondary 1 | . . . . . . . . . . . . . . . 1 . . . . . . . . . . . . . . . . . . . . . . . . . . . . Self-Inflicted Damage 434 | . . . . . . 21 42 . . 4 . . . 184 37 20 . 7 1 . . . . . . . 17 . . . . . . . . 26 . . . . . 45 30 Shots 17 | . . . . . . 1 2 . . 1 . . . 5 1 1 . 1 1 . . . . . . . 2 . . . . . . . . 1 . . . . . 1 . Rammed 26 | 1 9 8 2 3 . . . . . . . . . . . . . . . . . . . . . . . . . . . . . . . . . . . . . . 3 Targets Rammed 28 | 2 9 9 2 3 . . . . . . . . . . . . . . . . . . . . . . . . . . . . . . . . . . . . . . 3 Kicked . | . . . . . . . . . . . . . . . . . . . . . . . . . . . . . . . . . . . . . . . . . . . . Crushed 2 | 1 . 1 . . . . . . . . . . . . . . . . . . . . . . . . . . . . . . . . . . . . . . . . . Highest Temperature 448 | 90 379 158 210 168 . 252 304 12 236 302 193 48 2 341 225 326 414 321 9 . 230 . . . . . 268 5 80 100 . . . . . . . 364 240 448 . 333 404 Average Temperature 97 | 48 184 82 64 55 . 82 77 6 86 71 80 20 2 127 68 127 102 87 3 . 93 . . . . . 119 2 28 37 . . . . . . . 162 60 141 . 81 122 Received Heat Transfer 4257 | . 318 72 62 9 . 99 603 . . 216 54 . 246 288 150 . 276 36 156 . 135 . . 54 51 9 459 63 . 30 . . . . 33 10 . 4 36 48 4 176 560 Effects 24 | . 6 . . . . 1 . . . . . . . 1 . . 4 7 . . . . . . . . 1 . . . . . . . . . . . 1 1 . 2 . Shutdowns 1 | . 1 . . . . . . . . . . . . . . . . . . . . . . . . . . . . . . . . . . . . . . . . . . Energy Bleed 8 | . . . . . . 1 . . . . . . . 1 . . 1 3 . . . . . . . . 1 . . . . . . . . . . . 1 . . . . Interference 11 | . 2 . . . . . . . . . . . . . . . 3 4 . . . . . . . . . . . . . . . . . . . . . . . 2 . Matter Decay 2 | . 2 . . . . . . . . . . . . . . . . . . . . . . . . . . . . . . . . . . . . . . . . . . Short Circuit 1 | . 1 . . . . . . . . . . . . . . . . . . . . . . . . . . . . . . . . . . . . . . . . . . Damage (minor) 1 | . . . . . . . . . . . . . . . . . . . . . . . . . . . . . . . . . . . . . . . . 1 . . . Siege Activations 6 | . . . . . . . . . . . . . . . 1 . . . . . 1 . 1 . . . 2 . . 1 . . . . . . . . . . . . . Total Turns 190 | . . . . . . . . . . . . . . . 27 . . . . . 22 . 23 . . . 110 . . 8 . . . . . . . . . . . . . Longest Duration 75 | . . . . . . . . . . . . . . . 27 . . . . . 22 . 23 . . . 75 . . 8 . . . . . . . . . . . . . Robots Corrupted 168 | . . . . . 1 . . . . . . . 4 . . . . 1 8 . . . . 6 3 . 1 1 . 11 1 2 . . 9 6 . 7 1 18 6 58 24 Combat Hostiles 141 | . . . . . 1 . . . . . . . 4 . . . . 1 6 . . . . 6 3 . . 1 . 8 . 2 . . 7 5 . 5 . 12 4 52 24 Parts Fried 403 | . . . . . 3 . . . . . . . 11 . . . . 6 19 . . . 8 9 3 . 14 . . 30 . 3 . . 24 16 . 16 9 37 27 106 62 Impact Corruptions . | . . . . . . . . . . . . . . . . . . . . . . . . . . . . . . . . . . . . . . . . . . . . Robots Melted 2 | . . 1 . . . . . . . . . . . 1 . . . . . . . . . . . . . . . . . . . . . . . . . . . . . Combat Hostiles 2 | . . 1 . . . . . . . . . . . 1 . . . . . . . . . . . . . . . . . . . . . . . . . . . . . Parts Melted 32 | . 1 1 2 1 . 1 5 . . 7 . . . 2 . . . . . . 4 . 1 1 2 . . . . . . . . . . . . . . 3 . 1 . Heat Transferred 30579 | 136 1961 407 1628 555 12 962 3441 296 . 3581 350 . 100 532 687 300 879 68 2832 . 1550 . 650 3175 475 375 525 . . . . . . . 299 . . 564 592 1924 50 1673 . Parts Sabotaged 2 | . . . . . . . . . . . . . . . . . . . . . . . . . . . . . . . . . . . . . . 2 . . . . . Parts Stolen . | . . . . . . . . . . . . . . . . . . . . . . . . . . . . . . . . . . . . . . . . . . . . Parts Stripped . | . . . . . . . . . . . . . . . . . . . . . . . . . . . . . . . . . . . . . . . . . . . . Power Chain Reactions 11 | . . . . . 1 . . . . . . . 1 . . . . 1 2 . 1 . . . . . 1 . . . . . . . . . . . . . 1 3 . Missiles Intercepted . | . . . . . . . . . . . . . . . . . . . . . . . . . . . . . . . . . . . . . . . . . . . . Alert | -11 -10 -10 -9 -9 -9 -8 -8 -7 -7 -7 -7 -7 -7 -6 -6 -6 -6 -6 -6 -5 -5 -5 -5 -5 -5 -5 -5 -4 -4 -4 -4 -4 -4 -3 -3 -3 -3 -2 -2 -2 -1 -1 -1 ------- Run | Scr Mat Min Mat Min Exi Min Mat Fac Was Fac Low Low Dat Pro Fac Low Low Zio Dee Pro Fac Was Fac Ext Cet Arc Hub Fac Was Fac Upp Upp War Pro Res Arm Lab Res Qua Sec Acc Com Ac0 Peak Influence 6657 | 10 242 50 333 234 . 202 857 384 68 553 . . . . 705 . . . . . 344 120 153 713 878 453 1267 902 337 880 . . . . 706 1519 . 934 1112 1501 1238 6657 . Average Influence 479 | 3 121 21 164 98 . 49 477 349 53 165 . . . . 507 . . . . . 193 69 51 179 677 369 625 731 241 626 . . . . 395 883 . 714 824 933 1014 3172 . Maximum Alert Level 5 | . 1 . 1 1 . 1 3 1 . 2 . . . . 3 . . . . . 1 . . 3 3 2 4 3 1 3 . . . . 3 4 . 3 4 4 4 5 . Low Security (%) 42 | 100 70 100 64 85 . 98 15 5 100 74 . . . . 15 . . . . . 49 100 100 78 . . 39 . 41 14 . . . . 25 . . 7 . . . . . Level 1 13 | . 29 . 35 14 . 1 40 94 . 6 . . . . 15 . . . . . 50 . . 6 8 44 3 . 58 2 . . . . 15 3 . 6 . . . . . Level 2 11 | . . . . . . . 3 . . 19 . . . . 65 . . . . . . . . 8 42 55 . 45 . 34 . . . . 49 32 . 13 31 8 3 1 . Level 3 18 | . . . . . . . 41 . . . . . . . 4 . . . . . . . . 5 49 . 42 54 . 48 . . . . 8 42 . 72 67 74 68 5 . Level 4 2 | . . . . . . . . . . . . . . . . . . . . . . . . . . . 14 . . . . . . . . 22 . . . 17 28 2 . Level 5 9 | . . . . . . . . . . . . . . . . . . . . . . . . . . . . . . . . . . . . . . . . . . 75 . High Security 1 | . . . . . . . . . . . . . . . . . . . . . . . . . . . . . . . . . . . . . . . . . . 14 . Max Security . | . . . . . . . . . . . . . . . . . . . . . . . . . . . . . . . . . . . . . . . . . . . . Squads Dispatched 142 | . 4 . 6 . . . 7 1 . 5 . . . . 8 . . . . . 5 . 4 1 . . 2 3 . 12 . . . . 9 3 . 12 11 25 3 21 . Investigation 18 | . 3 . 3 . . . 1 . . 1 . . . . . . . . . . . . 1 1 . . . . . 1 . . . . . 1 . 1 1 2 1 1 . Extermination 18 | . . . . . . . . . . 2 . . . . 2 . . . . . 1 . 1 . . . . . . 2 . . . . 2 . . . 3 2 1 2 . Reinforcement 27 | . 1 . 3 . . . 2 1 . 2 . . . . 3 . . . . . 2 . . . . . 1 1 . 3 . . . . 3 1 . 1 2 1 . . . Assault 30 | . . . . . . . 1 . . . . . . . 1 . . . . . . . . . . . 1 2 . 1 . . . . 1 1 . . 2 2 . 18 . Garrison 6 | . . . . . . . 3 . . . . . . . . . . . . . . . . . . . . . . 3 . . . . . . . . . . . . . Intercept 43 | . . . . . . . . . . . . . . . 2 . . . . . 2 . 2 . . . . . . 2 . . . . 3 . . 10 3 18 1 . . Construction Impeded 6 | . . . . . . . . . . 2 . . . . 1 . . . . . . . . . . . 1 . . 1 . . . . 1 . . . . . . . . Haulers Reinforced 5 | . . . . . . . . . . . . . . . . . . . . . 1 . . . . . . 1 . 2 . . . . 1 . . . . . . . . Stealth | -11 -10 -10 -9 -9 -9 -8 -8 -7 -7 -7 -7 -7 -7 -6 -6 -6 -6 -6 -6 -5 -5 -5 -5 -5 -5 -5 -5 -4 -4 -4 -4 -4 -4 -3 -3 -3 -3 -2 -2 -2 -1 -1 -1 --------- Run | Scr Mat Min Mat Min Exi Min Mat Fac Was Fac Low Low Dat Pro Fac Low Low Zio Dee Pro Fac Was Fac Ext Cet Arc Hub Fac Was Fac Upp Upp War Pro Res Arm Lab Res Qua Sec Acc Com Ac0 Distress Signals 54 | . 1 1 2 . . . 2 . . 2 . 1 . . 1 . . . . . . . . 1 2 . 3 . . 2 . . . . 2 2 . 7 2 1 2 20 . Communications Jammed . | . . . . . . . . . . . . . . . . . . . . . . . . . . . . . . . . . . . . . . . . . . . . Distress Signals . | . . . . . . . . . . . . . . . . . . . . . . . . . . . . . . . . . . . . . . . . . . . . Times Spotted 955 | . 20 2 28 8 4 15 41 2 5 33 4 4 4 25 19 7 20 38 12 . 18 1 8 41 22 4 32 8 7 23 . 4 4 2 28 25 2 40 16 57 13 237 72 Peak Tracking Total 50 | . 5 1 7 4 5 4 5 1 1 9 3 2 4 5 5 4 5 4 5 . 3 1 2 7 5 2 17 6 3 5 1 2 4 2 5 5 2 9 5 10 6 50 24 Tactical Retreats 88 | . . . . 1 . . 3 . . 4 . . . . . . 1 22 1 . 3 . . 3 2 . 4 . 2 3 . 1 . . 1 2 . 6 2 3 1 14 9 Traps | -11 -10 -10 -9 -9 -9 -8 -8 -7 -7 -7 -7 -7 -7 -6 -6 -6 -6 -6 -6 -5 -5 -5 -5 -5 -5 -5 -5 -4 -4 -4 -4 -4 -4 -3 -3 -3 -3 -2 -2 -2 -1 -1 -1 ------- Run | Scr Mat Min Mat Min Exi Min Mat Fac Was Fac Low Low Dat Pro Fac Low Low Zio Dee Pro Fac Was Fac Ext Cet Arc Hub Fac Was Fac Upp Upp War Pro Res Arm Lab Res Qua Sec Acc Com Ac0 Traps Triggered 33 | . 2 . 1 . . . 1 1 . 2 . . . . 1 . . 11 . . 1 . . 1 . . 2 1 . 2 . . . . . . . . 1 1 2 3 . Indirectly 12 | . . . . . . . . . . . . . . . . . . 11 . . . . . . . . 1 . . . . . . . . . . . . . . . . Trap Hack Attempts . | . . . . . . . . . . . . . . . . . . . . . . . . . . . . . . . . . . . . . . . . . . . . Triggered . | . . . . . . . . . . . . . . . . . . . . . . . . . . . . . . . . . . . . . . . . . . . . Disarmed . | . . . . . . . . . . . . . . . . . . . . . . . . . . . . . . . . . . . . . . . . . . . . Reprogrammed 7 | . . . . . . . . . . . . . . . . . . . . . . . . . . . . . . . . . . . . . . . 3 4 . . . Reused 8 | . . . . . . . . . . . . . 1 . . . . 7 . . . . . . . . . . . . . . . . . . . . . . . . . Traps Extracted . | . . . . . . . . . . . . . . . . . . . . . . . . . . . . . . . . . . . . . . . . . . . . Installed 9 | . . . . . . . . . . . . . 2 . . . . 7 . . . . . . . . . . . . . . . . . . . . . . . . . Triggered 20 | . . . . . . . . . . . 1 1 . . . . 5 . . . . . . . . . . . . . . . 13 . . . . . . . . . . Machines | -11 -10 -10 -9 -9 -9 -8 -8 -7 -7 -7 -7 -7 -7 -6 -6 -6 -6 -6 -6 -5 -5 -5 -5 -5 -5 -5 -5 -4 -4 -4 -4 -4 -4 -3 -3 -3 -3 -2 -2 -2 -1 -1 -1 ---------- Run | Scr Mat Min Mat Min Exi Min Mat Fac Was Fac Low Low Dat Pro Fac Low Low Zio Dee Pro Fac Was Fac Ext Cet Arc Hub Fac Was Fac Upp Upp War Pro Res Arm Lab Res Qua Sec Acc Com Ac0 Machines Disabled 127 | . 2 . 1 1 3 . 9 . . 6 . . . . 5 . . 4 3 . 8 . 1 4 9 1 12 4 . 3 . . . . . 11 3 4 6 11 . 6 10 Max in Single Turn 9 | . 1 . 1 1 2 . 2 . . 5 . . . . 2 . . 2 1 . 7 . 1 1 1 . 9 1 . 1 . . . . . 1 1 1 1 1 . 2 1 Garrison Access 4 | . . . . . . . . . . . . . . . . . . . . . . . . . . . 1 . . . . . . . . . . 1 1 1 . . . Phase Generator 1 | . . . . . . . . . . . . . . . . . . . . . . . . . . . . . . . . . . . . . . . . . . 1 . Network Hub 2 | . . . . . . . . . . . . . . . . . . . . . . . . . . . 2 . . . . . . . . . . . . . . . . Machines Sabotaged . | . . . . . . . . . . . . . . . . . . . . . . . . . . . . . . . . . . . . . . . . . . . . Garrisons Compromised . | . . . . . . . . . . . . . . . . . . . . . . . . . . . . . . . . . . . . . . . . . . . . Overloaded Fab Kills . | . . . . . . . . . . . . . . . . . . . . . . . . . . . . . . . . . . . . . . . . . . . . Fab Network Shutdowns 2 | . . . . . . . . . . . . . . . 1 . . . . . . . . . . . . . . . . . . . . . . 1 . . . . . Hacking | -11 -10 -10 -9 -9 -9 -8 -8 -7 -7 -7 -7 -7 -7 -6 -6 -6 -6 -6 -6 -5 -5 -5 -5 -5 -5 -5 -5 -4 -4 -4 -4 -4 -4 -3 -3 -3 -3 -2 -2 -2 -1 -1 -1 --------- Run | Scr Mat Min Mat Min Exi Min Mat Fac Was Fac Low Low Dat Pro Fac Low Low Zio Dee Pro Fac Was Fac Ext Cet Arc Hub Fac Was Fac Upp Upp War Pro Res Arm Lab Res Qua Sec Acc Com Ac0 Machines Accessed 125 | . 8 1 3 . 4 2 4 4 . 4 . 1 4 . 5 1 . . . . 4 . 3 14 5 . 2 . . 4 2 1 7 . 4 3 1 2 9 11 4 6 2 Terminals 73 | . 5 . 1 . . 2 2 1 . 1 . . . . 2 . . . . . 3 . 2 14 5 . 2 . . 3 . . . . 1 3 . . 7 10 3 6 . Fabricators 7 | . . . . . . . . 2 . . . . . . 1 . . . . . 1 . . . . . . . . 1 . . . . 1 . . 1 . . . . . Repair Stations 8 | . 1 . . . . . . 1 . 1 . . . . 1 . . . . . . . 1 . . . . . . . . . . . 1 . . 1 1 . . . . Recycling Units 8 | . 2 . 2 . . . 1 . . 1 . . . . 1 . . . . . . . . . . . . . . . . . . . . . . . . . 1 . . Scanalyzers 5 | . . . . . . . 1 . . 1 . . . . . . . . . . . . . . . . . . . . . . . . 1 . . . 1 1 . . . Garrison Access . | . . . . . . . . . . . . . . . . . . . . . . . . . . . . . . . . . . . . . . . . . . . . Total Hacks 528 | . 22 1 4 . 48 7 21 9 . 16 . 1 27 . 10 1 . . . . 10 . 6 42 18 . 6 . . 21 2 1 17 . 13 11 21 13 40 56 30 31 23 Successful 324 | . 12 1 3 . 48 2 18 5 . 4 . 1 27 . 7 1 . . . . 6 . 1 24 6 . 4 . . 8 2 1 17 . 7 3 21 7 17 27 9 12 23 Failed 204 | . 10 . 1 . . 5 3 4 . 12 . . . . 3 . . . . . 4 . 5 18 12 . 2 . . 13 . . . . 6 8 . 6 23 29 21 19 . Catastrophic 43 | . . . . . . 2 . 2 . 3 . . . . 1 . . . . . . . 2 3 1 . 1 . . 2 . . . . 2 . . 2 4 7 7 4 . Database Lockouts . | . . . . . . . . . . . . . . . . . . . . . . . . . . . . . . . . . . . . . . . . . . . . Manual 212 | . 12 . 3 . . 8 2 1 . 8 . . . . 4 . . 4 . . 3 . 4 27 18 . 3 . . 9 . . 2 . 3 2 . 5 17 35 27 15 . Terminals 293 | . 14 . 2 . . 7 6 3 . 9 . . . . 3 . . . . . 8 . 4 42 18 . 6 . . 12 . . . . 5 11 . . 30 54 28 31 . Fabricators 34 | . . . . . . . . 5 . . . . . . 3 . . . . . 2 . . . . . . . . 9 . . . . 5 . . 10 . . . . . Repair Stations 23 | . 6 . . . . . . 1 . 2 . . . . 3 . . . . . . . 2 . . . . . . . . . . . 2 . . 3 4 . . . . Recycling Units 14 | . 2 . 2 . . . 4 . . 3 . . . . 1 . . . . . . . . . . . . . . . . . . . . . . . . . 2 . . Scanalyzers 22 | . . . . . . . 11 . . 2 . . . . . . . . . . . . . . . . . . . . . . . . 1 . . . 6 2 . . . Garrison Access . | . . . . . . . . . . . . . . . . . . . . . . . . . . . . . . . . . . . . . . . . . . . . Terminal Hacks 230 | . 3 1 . . 48 2 3 2 . 3 . 1 27 . 1 1 . . . . 2 . . 20 2 . 3 . . 3 2 1 17 . 1 2 21 . 7 18 7 9 23 Record 106 | . . . . . 48 . . . . . . . 11 . . . . . . . . . . . 1 . . . . . . . 7 . . . 21 . . . . . 18 Part Schematic 7 | . . . . . . . . . . . . . 6 . . . . . . . . . . 1 . . . . . . . . . . . . . . . . . . . Robot Schematic 8 | . . . . . . . . . . . . . 7 . . . . . . . . . . 1 . . . . . . . . . . . . . . . . . . . Robot Analysis 3 | . 2 . . . . 1 . . . . . . . . . . . . . . . . . . . . . . . . . . . . . . . . . . . . . Prototype ID Bank 24 | . 1 . . . . . 2 1 . . . . 3 . . . . . . . . . . 3 . . 1 . . 1 . . 8 . . . . . 2 2 . . . Open Door 15 | . . 1 . . . . . . . . . 1 . . . 1 . . . . . . . 4 . . . . . . 2 1 2 . . . . . . 2 1 . . Branch Access Points 2 | . . . . . . . . . . 1 . . . . . . . . . . . . . . . . . . . 1 . . . . . . . . . . . . . Emergency Access Points 1 | . . . . . . . . . . . . . . . . . . . . . . . . . . . . . . . . . . . . . . . . 1 . . . Alert Level 12 | . . . . . . . . 1 . . . . . . . . . . . . . . . 5 . . . . . . . . . . . . . . . 3 1 2 . Unreport Threat 15 | . . . . . . . . . . . . . . . . . . . . . . . . 2 1 . . . . . . . . . . . . . . 4 5 3 . Locate Traps 12 | . . . . . . . . . . 1 . . . . . . . . . . . . . 2 . . 1 . . . . . . . . 2 . . 1 3 . 2 . Reprogram Traps 3 | . . . . . . . . . . . . . . . . . . . . . . . . . . . . . . . . . . . . . . . 2 1 . . . Patrol Status 1 | . . . . . . 1 . . . . . . . . . . . . . . . . . . . . . . . . . . . . . . . . . . . . . Recall Investigation 1 | . . . . . . . . . . . . . . . . . . . . . . . . 1 . . . . . . . . . . . . . . . . . . . Recall Extermination 3 | . . . . . . . . . . . . . . . . . . . . . 1 . . . . . . . . . . . . . . . . . 1 1 . . . Recall Reinforcements 1 | . . . . . . . . . . . . . . . 1 . . . . . . . . . . . . . . . . . . . . . . . . . . . . Hauler Manifests 7 | . . . . . . . 1 . . 1 . . . . . . . . . . 1 . . 1 . . . . . 1 . . . . 1 . . . 1 . . . . Registered Prototypes 1 | . . . . . . . . . . . . . . . . . . . . . . . . . . . 1 . . . . . . . . . . . . . . . . Zone Layout 1 | . . . . . . . . . . . . . . . . . . . . . . . . . . . . . . . . . . . . . . . . 1 . . . Disengage Seal 2 | . . . . . . . . . . . . . . . . . . . . . . . . . . . . . . . . . . . . . . . . . . 2 . Gate Test 138-A 2 | . . . . . . . . . . . . . . . . . . . . . . . . . . . . . . . . . . . . . . . . . . . 2 Gate Test 138-B 1 | . . . . . . . . . . . . . . . . . . . . . . . . . . . . . . . . . . . . . . . . . . . 1 Gate Test 138-C 1 | . . . . . . . . . . . . . . . . . . . . . . . . . . . . . . . . . . . . . . . . . . . 1 Gate Test 138-END 1 | . . . . . . . . . . . . . . . . . . . . . . . . . . . . . . . . . . . . . . . . . . . 1 Fabricator Hacks 14 | . . . . . . . . 3 . . . . . . 2 . . . . . 1 . . . . . . . . 2 . . . . 2 . . 4 . . . . . Load Schematic 6 | . . . . . . . . 1 . . . . . . 1 . . . . . . . . . . . . . . 1 . . . . 1 . . 2 . . . . . Build 8 | . . . . . . . . 2 . . . . . . 1 . . . . . 1 . . . . . . . . 1 . . . . 1 . . 2 . . . . . Repair Station Hacks 14 | . 5 . . . . . . . . . . . . . 2 . . . . . . . 1 . . . . . . . . . . . 2 . . 2 2 . . . . Scan Component 8 | . 3 . . . . . . . . . . . . . 1 . . . . . . . 1 . . . . . . . . . . . 1 . . 1 1 . . . . Repair 6 | . 2 . . . . . . . . . . . . . 1 . . . . . . . . . . . . . . . . . . . 1 . . 1 1 . . . . Recycling Unit Hacks 3 | . . . . . . . 2 . . . . . . . 1 . . . . . . . . . . . . . . . . . . . . . . . . . . . . Retrieve Components 3 | . . . . . . . 2 . . . . . . . 1 . . . . . . . . . . . . . . . . . . . . . . . . . . . . Scanalyzer 18 | . . . . . . . 11 . . . . . . . . . . . . . . . . . . . . . . . . . . . 1 . . . 4 2 . . . Insert Component 14 | . . . . . . . 7 . . . . . . . . . . . . . . . . . . . . . . . . . . . 1 . . . 4 2 . . . Analyze 4 | . . . . . . . 4 . . . . . . . . . . . . . . . . . . . . . . . . . . . . . . . . . . . . Garrison Access Hacks . | . . . . . . . . . . . . . . . . . . . . . . . . . . . . . . . . . . . . . . . . . . . . Unauthorized Hacks 134 | . 10 . 6 . . . 4 1 . 3 . . . . 3 . . . . . 6 . 2 11 11 . 3 . . 11 . . . . 4 3 . 6 12 21 5 12 . Terminals 37 | . 2 . 1 . . . 2 . . 1 . . . . . . . . . . 3 . . 4 4 . 1 . . 1 . . . . 1 1 . . 4 7 2 3 . Track 8 | . 1 . . . . . . . . . . . . . . . . . . . . . . 1 2 . . . . . . . . . . . . . . 3 . 1 . Assimilate 1 | . . . . . . . . . . . . . . . . . . . . . 1 . . . . . . . . . . . . . . . . . . . . . . Botnet 24 | . 1 . 1 . . . 1 . . 1 . . . . . . . . . . 2 . . 3 2 . 1 . . 1 . . . . 1 1 . . 2 3 2 2 . Disrupt 3 | . . . . . . . . . . . . . . . . . . . . . . . . . . . . . . . . . . . . . . . 2 1 . . . Operators 1 | . . . . . . . 1 . . . . . . . . . . . . . . . . . . . . . . . . . . . . . . . . . . . . Fabricators 4 | . . . . . . . . . . . . . . . 1 . . . . . . . . . . . . . . 2 . . . . . . . 1 . . . . . Prioritize 3 | . . . . . . . . . . . . . . . 1 . . . . . . . . . . . . . . 1 . . . . . . . 1 . . . . . Haulers 1 | . . . . . . . . . . . . . . . . . . . . . . . . . . . . . . 1 . . . . . . . . . . . . . Repair Stations . | . . . . . . . . . . . . . . . . . . . . . . . . . . . . . . . . . . . . . . . . . . . . Recycling Units 4 | . 2 . 2 . . . . . . . . . . . . . . . . . . . . . . . . . . . . . . . . . . . . . . . . Tunnel 4 | . 2 . 2 . . . . . . . . . . . . . . . . . . . . . . . . . . . . . . . . . . . . . . . . Scanalyzers . | . . . . . . . . . . . . . . . . . . . . . . . . . . . . . . . . . . . . . . . . . . . . Garrison Access . | . . . . . . . . . . . . . . . . . . . . . . . . . . . . . . . . . . . . . . . . . . . . Data Cores Recovered 3 | . . . . . . . . . . . . . . . . . . . . . 1 . . . . . . . . . . . . . . . . . . 1 . 1 . Used 1 | . . . . . . . . . . . . . . . . . . . . . . . . . . . . . . . . . . . . . . . . 1 . . . Hacking Detections 89 | . 6 . 1 . . 2 3 4 . 4 . . . . 4 . . . . . 4 . 3 14 5 . 2 . . 4 . . . . 2 3 . 2 7 9 4 6 . Full Trace Events 6 | . . . . . . . . . . 1 . . . . . . . . . . . . 1 . . . . . . 1 . . . . . . . . 1 2 . . . Feedback Events 1 | . . . . . . . . . . . . . . . . . . . . . . . 1 . . . . . . . . . . . . . . . . . . . . Corruption 1 | . . . . . . . . . . . . . . . . . . . . . . . 1 . . . . . . . . . . . . . . . . . . . . Feedback Blocked . | . . . . . . . . . . . . . . . . . . . . . . . . . . . . . . . . . . . . . . . . . . . . Robot Schematics Acquired 8 | . . . . . . . . . . . . . 7 . . . . . . . . . . 1 . . . . . . . . . . . . . . . . . . . Robots Built . | . . . . . . . . . . . . . . . . . . . . . . . . . . . . . . . . . . . . . . . . . . . . Matter . | . . . . . . . . . . . . . . . . . . . . . . . . . . . . . . . . . . . . . . . . . . . . Time . | . . . . . . . . . . . . . . . . . . . . . . . . . . . . . . . . . . . . . . . . . . . . Total Robot Build Rating . | . . . . . . . . . . . . . . . . . . . . . . . . . . . . . . . . . . . . . . . . . . . . Part Schematics Acquired 11 | . . . . . . . 4 . . . . . 6 . . . . . . . . . . 1 . . . . . . . . . . . . . . . . . . . Parts Built 10 | . . . . . . . . 4 . . . . . . 1 . . . . . 1 . . . . . . . . 1 . . . . 1 . . 2 . . . . . Matter 2050 | . . . . . . . . 380 . . . . . . 285 . . . . . 212 . . . . . . . . 285 . . . . 318 . . 570 . . . . . Time 598 | . . . . . . . . 94 . . . . . . 152 . . . . . 106 . . . . . . . . 76 . . . . 56 . . 114 . . . . . Total Part Build Rating 52 | . . . . . . . . 20 . . . . . . 5 . . . . . 6 . . . . . . . . 5 . . . . 6 . . 10 . . . . . Parts Repaired 6 | . 2 . . . . . . . . . . . . . 1 . . . . . . . . . . . . . . . . . . . 1 . . 1 1 . . . . Time 330 | . 62 . . . . . . . . . . . . . 50 . . . . . . . . . . . . . . . . . . . 74 . . 36 108 . . . . Parts Recycled . | . . . . . . . . . . . . . . . . . . . . . . . . . . . . . . . . . . . . . . . . . . . . Recycled Matter . | . . . . . . . . . . . . . . . . . . . . . . . . . . . . . . . . . . . . . . . . . . . . Retrieved Matter . | . . . . . . . . . . . . . . . . . . . . . . . . . . . . . . . . . . . . . . . . . . . . Retrieved Components 11 | . . . . . . . 10 . . . . . . . 1 . . . . . . . . . . . . . . . . . . . . . . . . . . . . Parts Scanalyzed 4 | . . . . . . . 4 . . . . . . . . . . . . . . . . . . . . . . . . . . . . . . . . . . . . Part Schematics Acquired 4 | . . . . . . . 4 . . . . . . . . . . . . . . . . . . . . . . . . . . . . . . . . . . . . Parts Damaged . | . . . . . . . . . . . . . . . . . . . . . . . . . . . . . . . . . . . . . . . . . . . . Bothacking | -11 -10 -10 -9 -9 -9 -8 -8 -7 -7 -7 -7 -7 -7 -6 -6 -6 -6 -6 -6 -5 -5 -5 -5 -5 -5 -5 -5 -4 -4 -4 -4 -4 -4 -3 -3 -3 -3 -2 -2 -2 -1 -1 -1 ------------ Run | Scr Mat Min Mat Min Exi Min Mat Fac Was Fac Low Low Dat Pro Fac Low Low Zio Dee Pro Fac Was Fac Ext Cet Arc Hub Fac Was Fac Upp Upp War Pro Res Arm Lab Res Qua Sec Acc Com Ac0 Used RIF Installer . | . . . . . . . . . . . . . . . . . . . . . . . . . . . . . . . . . . . . . . . . . . . . Robots Hacked 6 | . . . . . . . . 1 . . . . . . . . . 1 . . . . . 1 2 . . . . . . . . . . . . . . . . 1 . Non-combat 1 | . . . . . . . . 1 . . . . . . . . . . . . . . . . . . . . . . . . . . . . . . . . . . . Combat 4 | . . . . . . . . . . . . . . . . . . 1 . . . . . 1 2 . . . . . . . . . . . . . . . . . . Robot Hacks Applied 5 | . . . . . . . . 1 . . . . . . . . . 1 . . . . . 1 2 . . . . . . . . . . . . . . . . . . parse_system 4 | . . . . . . . . . . . . . . . . . . 1 . . . . . 1 2 . . . . . . . . . . . . . . . . . . find_chute 1 | . . . . . . . . 1 . . . . . . . . . . . . . . . . . . . . . . . . . . . . . . . . . . . Manual 1 | . . . . . . . . . . . . . . . . . . . . . . . . . . . . . . . . . . . . . . . . . . 1 . Relay Couplers Released 7 | . . . . . . . . . . . . . . . . . . . . . . . . . . . 2 . . . . . . . . . . 1 2 2 . . . Machine Destruction 7 | . . . . . . . . . . . . . . . . . . . . . . . . . . . 2 . . . . . . . . . . 1 2 2 . . . Robots Rewired 27 | . . . . . . . . . . . . . . . . . . . . . . . . 15 . . . 1 . . . . 5 . 1 5 . . . . . . . Allies Hacked 6 | . . . . . . . . . . . . . . . . . . . . . . . . 3 . . . . . . . . . . 1 . . . . . . 2 . Hacks Repelled 1 | . . . . . . . . . . . . . . . . . . . . . . . . . . . . . . . . . . . . . . . . . . 1 . Allies | -11 -10 -10 -9 -9 -9 -8 -8 -7 -7 -7 -7 -7 -7 -6 -6 -6 -6 -6 -6 -5 -5 -5 -5 -5 -5 -5 -5 -4 -4 -4 -4 -4 -4 -3 -3 -3 -3 -2 -2 -2 -1 -1 -1 -------- Run | Scr Mat Min Mat Min Exi Min Mat Fac Was Fac Low Low Dat Pro Fac Low Low Zio Dee Pro Fac Was Fac Ext Cet Arc Hub Fac Was Fac Upp Upp War Pro Res Arm Lab Res Qua Sec Acc Com Ac0 Total Allies 129 | . . 1 . 3 . . . . . . . . . . . . . 3 . . 1 . . 24 5 . 3 1 19 . . . 5 . 1 5 . . . . . 58 . Largest Group 37 | . . 1 . 3 3 3 . . . . . . . . . . . 3 . . 1 1 . 12 9 5 6 2 19 19 . . 5 5 4 6 5 5 . . . 37 . Highest-Rated Group 1953 | . . 31 . 40 40 40 . . . . . . . . . . . 59 . . 10 10 . 453 679 447 368 181 696 696 . . 256 256 207 320 270 270 . . . 1953 . Highest-Rated Ally 156 | . . 31 . 16 16 16 . . . . . . . . . . . 25 . . 10 10 . 156 156 156 94 94 94 50 . . 56 56 60 60 60 60 . . . 90 . Total Orders 79 | . . . . . 1 . . . . . . . . . . . . . . . 12 3 . 3 . . 1 1 . . . . 12 2 16 15 11 2 . . . . . STAY 7 | . . . . . . . . . . . . . . . . . . . . . 3 1 . . . . . . . . . . . . 1 1 1 . . . . . . GOTO 29 | . . . . . 1 . . . . . . . . . . . . . . . 4 1 . 1 . . 1 1 . . . . 7 1 1 8 2 1 . . . . . FOLLOW 24 | . . . . . . . . . . . . . . . . . . . . . 5 1 . 2 . . . . . . . . 4 1 1 6 3 1 . . . . . EXPLORE 1 | . . . . . . . . . . . . . . . . . . . . . . . . . . . . . . . . . 1 . . . . . . . . . . RETURN 18 | . . . . . . . . . . . . . . . . . . . . . . . . . . . . . . . . . . . 13 . 5 . . . . . . Ally Attacks 1117 | . . . . 12 . 6 . . . . . . . . . . . . . . . . . 144 103 23 41 8 38 117 . . . 23 59 38 38 51 . . . 416 . Total Damage 36543 | . . . . 105 . 85 . . . . . . . . . . . . . . . . . 3419 2500 941 915 938 970 3388 . . . 793 1137 1735 578 1382 . . . 17657 . Kills 161 | . . . . 4 . 2 . . . . . . . . . . . . . . . . . 18 15 2 2 8 1 16 . . . 5 6 7 1 6 . . . 68 . Allies Corrupted 7 | . . . . . . . . . . . . . . . . . . . . . . . . . . . . . . 6 . . . . 1 . . . . . . . . Allies Melted 1 | . . . . . . . . . . . . . . . . . . . . . . . . . . . . . . . . . 1 . . . . . . . . . . Intel | -11 -10 -10 -9 -9 -9 -8 -8 -7 -7 -7 -7 -7 -7 -6 -6 -6 -6 -6 -6 -5 -5 -5 -5 -5 -5 -5 -5 -4 -4 -4 -4 -4 -4 -3 -3 -3 -3 -2 -2 -2 -1 -1 -1 ------- Run | Scr Mat Min Mat Min Exi Min Mat Fac Was Fac Low Low Dat Pro Fac Low Low Zio Dee Pro Fac Was Fac Ext Cet Arc Hub Fac Was Fac Upp Upp War Pro Res Arm Lab Res Qua Sec Acc Com Ac0 Robot Analysis Total 118 | . 2 . . . . 1 . . . . . . 115 . . . . . . . . . . . . . . . . . . . . . . . . . . . . . . Derelict Logs Recovered 17 | . . 1 . 2 . . . . . . 1 2 . 1 . 2 3 1 . 1 . . . . . . . . . . 1 2 . . . . . . . . . . . Drone Launches 25 | . . . . . . . . . . . . . . . . . . . . . . . . . . . . . . . . . 2 . 17 . 4 . . . . 2 . Drone Recoveries 19 | . . . . . . . . . . . . . . . . . . . . . . . . . . . . . . . . . . . 16 . 3 . . . . . . Exploration | -11 -10 -10 -9 -9 -9 -8 -8 -7 -7 -7 -7 -7 -7 -6 -6 -6 -6 -6 -6 -5 -5 -5 -5 -5 -5 -5 -5 -4 -4 -4 -4 -4 -4 -3 -3 -3 -3 -2 -2 -2 -1 -1 -1 ------------- Run | Scr Mat Min Mat Min Exi Min Mat Fac Was Fac Low Low Dat Pro Fac Low Low Zio Dee Pro Fac Was Fac Ext Cet Arc Hub Fac Was Fac Upp Upp War Pro Res Arm Lab Res Qua Sec Acc Com Ac0 Turns Passed 70252 | 103 990 1399 1041 1108 2003 1724 1641 425 507 1189 2741 2375 462 1624 1006 1766 2547 15311 6445 1420 1130 682 683 2354 510 643 467 265 679 765 1120 645 736 1022 789 574 318 1484 830 1641 281 3512 1295 Spaces Moved 33822 | 50 436 669 495 589 749 804 550 246 248 688 1407 1618 203 941 376 923 1208 2938 2670 737 466 353 277 1057 229 69 145 154 335 447 936 531 607 778 361 366 207 1094 651 1145 261 2645 2163 Core 6 | 6 . . . . . . . . . . . . . . . . . . . . . . . . . . . . . . . . . . . . . . . . . . . Treads 2948 | 44 436 669 495 589 686 . . . . . . . . . . . . . . . . . . . . . 29 . . . . . . . . . . . . . . . . Legs 13902 | . . . . . 63 804 550 88 . . . . 24 941 376 923 1208 2938 2670 737 466 353 277 1057 229 69 99 30 . . . . . . . . . . . . . . . Wheels 8171 | . . . . . . . . 158 248 688 1407 1618 179 . . . . . . . . . . . . . 17 124 335 447 936 531 607 778 98 . . . . . . . . Hover 8795 | . . . . . . . . . . . . . . . . . . . . . . . . . . . . . . . . . . . 263 366 207 1094 651 1145 261 2645 2163 Flight . | . . . . . . . . . . . . . . . . . . . . . . . . . . . . . . . . . . . . . . . . . . . . Fastest Speed 14 | 50 160 152 157 177 177 180 180 116 116 116 100 110 110 150 150 180 150 180 163 186 160 160 160 160 160 160 150 110 130 113 116 116 106 106 31 36 36 75 21 14 14 14 20 Average Speed 133 | 151 160 157 176 177 205 180 180 149 117 129 112 117 125 150 160 180 178 180 182 186 165 160 160 160 160 160 163 127 130 116 116 116 110 112 99 96 62 98 77 73 74 77 30 Slowest Speed 296 | 160 160 160 185 177 240 180 180 180 136 170 170 120 180 150 210 180 210 180 210 186 186 160 163 160 163 160 200 160 130 130 116 116 116 116 164 97 97 276 142 296 80 88 125 Overloaded Moves 1106 | . . . . . . . . . . . . . . . . . . . . . . . . . . . . . . . . . . . 19 . . 20 98 141 23 174 631 Propulsion Burnouts 2 | . . . . . . . . . . . . . . . . . . . . . . . . . . . . . . . . . . . . . . . . . . 1 1 Robots Hopped . | . . . . . . . . . . . . . . . . . . . . . . . . . . . . . . . . . . . . . . . . . . . . Cave-ins Triggered . | . . . . . . . . . . . . . . . . . . . . . . . . . . . . . . . . . . . . . . . . . . . . Teleports 2 | . . . . . . . . . . . . . . . . . . . . . . . . . . . . . . . . . . . . . . . . . . 1 1 Exploration Rate (%) 64 | 4 60 100 47 99 71 99 59 6 97 17 96 96 78 96 13 97 94 91 94 91 17 96 13 94 79 70 20 6 95 15 98 65 95 85 14 37 99 26 61 64 10 94 93 Regions Visited 43 Branch Regions 27 Pre-discovered Areas 34 | . 2 1 2 . 1 . . . . . 1 . 24 . . . . 2 . . . . . . . . . . . . . 1 . . . . . . . . . . . Known Exits Taken 23 | . . . . . . . 1 . . 1 1 1 1 . 1 . . . . . . . 1 1 1 1 1 . . 1 1 1 1 1 1 1 1 1 1 1 1 . . Unknown Exits Taken 14 | 1 1 1 1 1 1 1 . . . . . . . 1 . 1 1 1 1 1 . . . . . . . . . . . . . . . . . . . . . 1 . Scrap Searched 43 | . . 1 . 2 . 1 . . . . 4 9 . 2 . 2 9 3 . 3 . . . . . . . . . . 3 3 . 1 . . . . . . . . . Spaces Dug 279 | . . . 1 1 . 18 22 . 5 8 18 18 . 20 19 2 17 . 21 9 4 . 9 12 . . 7 2 12 7 . . 2 . 3 21 . 3 2 4 2 4 6 Terrain Destroyed 2532 | . . . 34 12 24 94 188 . 11 106 39 18 5 107 82 128 204 93 141 9 55 1 11 23 4 1 355 2 18 7 40 . 2 43 5 155 . 21 31 51 7 332 73 Melee 45 | . . . . . . . . . 4 . . 18 . 13 . . . . . . . . . . . . . . . . . . . . . . . . . 3 2 3 2 Projectile 430 | . . . 22 12 . 12 48 . 7 . 4 . . 3 34 6 19 3 13 9 14 1 11 23 4 1 21 2 18 7 . . 2 . 5 4 . 21 9 8 . 16 71 AOE 2057 | . . . 12 . 24 82 140 . . 106 35 . 5 91 48 122 185 90 128 . 41 . . . . . 334 . . . 40 . . 43 . 151 . . 22 40 5 313 . Actions | -11 -10 -10 -9 -9 -9 -8 -8 -7 -7 -7 -7 -7 -7 -6 -6 -6 -6 -6 -6 -5 -5 -5 -5 -5 -5 -5 -5 -4 -4 -4 -4 -4 -4 -3 -3 -3 -3 -2 -2 -2 -1 -1 -1 --------- Run | Scr Mat Min Mat Min Exi Min Mat Fac Was Fac Low Low Dat Pro Fac Low Low Zio Dee Pro Fac Was Fac Ext Cet Arc Hub Fac Was Fac Upp Upp War Pro Res Arm Lab Res Qua Sec Acc Com Ac0 Total 55724 | 67 634 1000 588 622 1008 1032 1010 289 368 867 2545 2035 364 1059 668 995 1471 12715 3995 780 753 407 479 1520 320 589 251 213 479 651 963 547 679 927 730 516 399 1460 933 1713 347 4040 2696 Wait 15992 | . 89 302 16 3 35 188 260 3 30 42 1061 343 94 14 157 39 140 9587 1109 31 154 . 101 240 39 498 11 5 25 36 10 4 26 129 167 18 110 101 76 84 15 589 11 Move 33782 | 50 435 668 494 588 748 803 549 246 247 687 1406 1617 202 940 375 922 1207 2937 2669 736 466 352 276 1056 228 68 144 154 334 446 935 530 606 777 360 365 206 1093 650 1144 260 2644 2162 Hop . | . . . . . . . . . . . . . . . . . . . . . . . . . . . . . . . . . . . . . . . . . . . . Pick Up 621 | 6 17 3 15 6 42 3 25 8 12 15 21 7 14 6 16 1 11 19 15 2 22 7 10 10 2 . 8 3 4 21 3 . 9 3 25 7 14 36 31 40 9 44 49 Fast Attach 256 | 7 6 1 5 . 15 . 8 5 1 8 8 7 5 2 3 . 2 2 12 . 3 1 5 5 2 3 1 3 2 3 1 . 3 1 4 3 4 14 12 22 . 20 47 Attach 471 | . 4 1 2 . 6 2 8 3 7 12 11 1 6 10 8 . 6 . 3 . 12 3 11 5 . 1 8 13 3 20 2 . 5 4 26 6 10 31 26 48 11 84 52 Detach 259 | . . 1 . . 6 . 4 1 1 6 6 . 1 4 2 . 1 . 4 . 11 1 3 11 3 7 6 10 4 8 . . 5 1 13 2 3 14 11 24 2 57 26 Swap 319 | . 4 2 6 3 10 4 26 5 2 12 7 5 3 16 17 7 27 17 15 . 9 . 6 13 6 1 . 1 1 10 . . . . 3 2 . 16 1 32 . 15 15 Drop 674 | . 14 5 9 1 38 1 24 10 16 19 15 13 12 3 8 1 3 16 33 2 25 9 19 13 3 3 7 2 4 20 4 . 11 4 25 9 15 37 44 51 7 53 66 Fire 2985 | 3 56 8 39 15 108 31 106 7 48 66 10 22 24 51 77 25 74 130 134 9 51 34 48 150 37 8 66 22 102 79 8 13 13 8 106 71 36 118 65 179 37 474 217 Melee 222 | . . . . . . . . 1 4 . . 20 1 13 . . . . . . . . . . . . . . . . . . . . . . . . 17 86 2 33 45 Ram 3 | . . . . . . . . . . . . . . . . . . . . . . . . . . . . . . . . . . . . . . . . . . . 3 Kick . | . . . . . . . . . . . . . . . . . . . . . . . . . . . . . . . . . . . . . . . . . . . . Crush 24 | 1 9 9 2 3 . . . . . . . . . . . . . . . . . . . . . . . . . . . . . . . . . . . . . . . Escape Stasis 51 | . . . . . . . . . . . . . . . 5 . . . . . . . . 5 . . . . . 8 . . . . . . . . . 3 4 26 . Rewire 53 | . . . . 3 . . . . . . . . . . . . . . 1 . . . . 12 . . . . . . . . . . 1 33 . . . . . . 3 Trap 9 | . . . . . . . . . . . . . 2 . . . . 7 . . . . . . . . . . . . . . . . . . . . . . . . . Miscellaneous 3 | . . . . . . . . . . . . . . . . . . . . . . . . . . . . . . . . . 1 . . . 1 . . . . 1 . Route ------- -11/Scrapyard -10/Materials (discovered 2 exits: *Min x2) -10/Mines (discovered 2 exits: *Mat x2) -9/Materials (discovered 4 exits: *Mat / [*Min] / *Sto x2) -9/Mines (discovered 3 exits: *Mat x2 / *Exi) -9/Exiles (discovered 2 exits: *Min x2) -8/Mines (discovered 2 exits: *Mat x2) -8/Materials (discovered 2 exits: *Fac x2) -7/Factory -7/Waste -7/Factory (discovered 3 exits: *Fac / *Low x2) -7/Lower Caves -7/Lower Caves (discovered 2 exits: Fac / *Dat) -7/Data Miner -6/Proximity Caves -6/Factory -6/Lower Caves -6/Lower Caves (discovered 2 exits: *Fac / *Zio) -6/Zion (discovered 2 exits: [*Dee] / [*Pro]) -6/Deep Caves -5/Proximity Caves -5/Factory (discovered 3 exits: *Fac / Upp x2) -5/Waste -5/Factory -5/Extension (discovered 2 exits: *Fac / *Cet) -5/Cetus (discovered 2 exits: *Fac / *Arc) -5/Archives (discovered 2 exits: *Fac / *Hub) -5/Hub_04(d) -4/Factory -4/Waste -4/Factory (discovered 2 exits: *Upp x2) -4/Upper Caves -4/Upper Caves (discovered 2 exits: *Res / *War) -4/Warlord -3/Proximity Caves -3/Research -3/Armory -3/Lab -2/Research (discovered 2 exits: *Acc / *Qua) -2/Quarantine -2/Section 7 -1/Access -1/Command (discovered 3 exits: [*Sur x2] / *Ac0) -1/Access_0 0b11 Command History --------- Turn | Location | Event 2 | -11/Scrapyard | Met Revision 17 8 | -11/Scrapyard | Discovered new exit (range 15) 104 | -11/Scrapyard | Entered Materials 314 | -10/Materials | Build established: Mutant 539 | -10/Materials | Lost 3 parts (1p2w) 651 | -10/Materials | Discovered new exit (range 9) 814 | -10/Materials | Repaired Broken Beam Cannon 840 | -10/Materials | Repaired Lgt. Treads 919 | -10/Materials | Discovered new exit (range 8) 1094 | -10/Materials | Entered Mines 1108 | -10/Mines | Met a Derelict who couldn't figure out how to use a Trap Extractor 1131 | -10/Mines | Met a Derelict bent on vengeance 1518 | -10/Mines | Discovered new exit (range 5) 1918 | -10/Mines | Received a Mining Laser from a helpful Derelict 2217 | -10/Mines | Discovered new exit (range 9) 2493 | -10/Mines | Entered Materials 2493 | -9/Materials | Evolved 2 slots: Utility x2 2712 | -9/Materials | Discovered new exit (range 15) 2740 | -9/Materials | Identified exit to Storage 2985 | -9/Materials | Discovered exit to Storage (range 15) 3069 | -9/Materials | Discovered new exit (range 13) 3257 | -9/Materials | Discovered new exit (range 12) 3534 | -9/Materials | Entered Mines 3535 | -9/Mines | Assembled infested the area 3556 | -9/Mines | Met 8R-AWN 3661 | -9/Mines | Learned Materials emergency access door positions 3684 | -9/Mines | Discovered new exit (range 8) 3800 | -9/Mines | Discovered new exit (range 8) 3837 | -9/Mines | Assisted by bots powering up and referring to "LRC-V3" 3895 | -9/Mines | Build established: Hauler-Mutant 4634 | -9/Mines | Discovered new exit (range 5) 4642 | -9/Mines | Entered Exiles 4642 | -9/Exiles | Accompanied by 3 allies 4671 | -9/Exiles | Discovered new exit (range 15) 4722 | -9/Exiles | Welcomed by 8R-AWN 4750 | -9/Exiles | Met EX-HEX 4971 | -9/Exiles | Met EX-DEC 5025 | -9/Exiles | Learned location of Zion (-6) 5064 | -9/Exiles | Met EX-BIN 5281 | -9/Exiles | Learned about 8R-AWN's background 5655 | -9/Exiles | Discovered new exit (range 14) 6019 | -9/Exiles | Attacked by the Exiles 6102 | -9/Exiles | Lost 3 parts (1p1n1u) 6380 | -9/Exiles | Destroyed 8R-AWN 6438 | -9/Exiles | Found Prototype Protection 6438 | -9/Exiles | Identified 8R-AWN's Armor/EX 6444 | -9/Exiles | Found Prototype Protection 6444 | -9/Exiles | Identified 8R-AWN's Armor/TH 6455 | -9/Exiles | Found Prototype Device 6455 | -9/Exiles | Identified AS-neutralizer No. 17b 6468 | -9/Exiles | Found Prototype Ballistic Gun 6468 | -9/Exiles | Identified 8R-AWN's Boregun 6502 | -9/Exiles | Found 8R-AWN's Boregun 6645 | -9/Exiles | Entered Mines 6645 | -8/Mines | Accompanied by 3 allies 7116 | -8/Mines | Discovered new exit (range 5) 8289 | -8/Mines | Discovered new exit (range 4) 8369 | -8/Mines | Entered Materials 8369 | -8/Materials | Evolved 2 slots: Utility x2 8871 | -8/Materials | Discovered new exit (range 11) 9256 | -8/Materials | Garrison activated, responded to threat 9362 | -8/Materials | Destroyed 7 combat bots 9663 | -8/Materials | Discovered new exit (range 13) 9751 | -8/Materials | Identified exit to Factory 9969 | -8/Materials | First assault squad dispatched 10010 | -8/Materials | Entered Factory 10010 | -7/Factory | Evolved 2 slots: Propulsion x1, Utility x1 10274 | -7/Factory | Fabricated Power Sword? 10405 | -7/Factory | Fabricated Cmb. Airjet (x2) 10435 | -7/Factory | Sucked down chute 10435 | -7/Factory | Entered Waste 10450 | -7/Waste | EMP discharged 10502 | -7/Waste | Destroyed C-40 Crusher 10521 | -7/Waste | Spotted C-40 Crusher 10550 | -7/Waste | EMP discharged 10550 | -7/Waste | System corruption reached 10% 10564 | -7/Waste | Destroyed C-40 Crusher 10568 | -7/Waste | Spotted C-40 Crusher 10585 | -7/Waste | Destroyed C-40 Crusher 10589 | -7/Waste | Spotted C-40 Crusher 10605 | -7/Waste | Found Damper Plating 10617 | -7/Waste | Found Damper Plating 10634 | -7/Waste | Spotted C-40 Crusher 10638 | -7/Waste | Destroyed C-40 Crusher 10650 | -7/Waste | EMP discharged 10662 | -7/Waste | Destroyed C-40 Crusher 10750 | -7/Waste | EMP discharged 10787 | -7/Waste | Spotted C-40 Crusher 10823 | -7/Waste | Destroyed C-40 Crusher 10839 | -7/Waste | Discovered new exit (range 11) 10850 | -7/Waste | EMP discharged 10942 | -7/Waste | Entered Factory 11043 | -7/Factory | Discovered new exit (range 9) 11766 | -7/Factory | Identified exit to Lower Caves 12131 | -7/Factory | Entered Lower Caves 13202 | -7/Lower Caves | Attracted the attention of an 0b10 checkpoint 13317 | -7/Lower Caves | Spotted B-75 Beast 13778 | -7/Lower Caves | Build established: Hauler-Skirmisher 14481 | -7/Lower Caves | Discovered new exit (range 17) 14531 | -7/Lower Caves | Identified exit to Lower Caves 14854 | -7/Lower Caves | Build established: Hauler-Assassin 14872 | -7/Lower Caves | Entered another Lower Caves area 14873 | -7/Lower Caves | Encountered a Warlord checkpoint 14910 | -7/Lower Caves | Discovered new exit (range 16) 15413 | -7/Lower Caves | Discovered new exit (range 3) 15414 | -7/Lower Caves | Identified exit to Data Miner 15464 | -7/Lower Caves | Found Alien Artifact 15464 | -7/Lower Caves | Identified Core Expander 15464 | -7/Lower Caves | Installed Core Expander, added new Power slot 16168 | -7/Lower Caves | Learned Factory terminal intel 16537 | -7/Lower Caves | Build established: Hauler-Skirmisher 17247 | -7/Lower Caves | Entered Data Miner 17247 | -7/Data Miner | Discovered new exit (range 6) 17255 | -7/Data Miner | Identified exit to Proximity Caves 17270 | -7/Data Miner | Met Data Miner 17291 | -7/Data Miner | Learned location of Section 7 (-2) 17291 | -7/Data Miner | Acquired the access code to Warlord's prototype stash 17400 | -7/Data Miner | Received God Mode back door access code from Data Miner 17473 | -7/Data Miner | Interfaced with the Data Conduit 17569 | -7/Data Miner | Lost 4 parts (1p1n1u1w) 17709 | -7/Data Miner | Entered Proximity Caves 17944 | -6/Proximity Caves | Lost 4 parts (2u2w) 17954 | -6/Proximity Caves | Learned location of 1 exit from Factory 18237 | -6/Proximity Caves | Destroyed 7 combat bots 18274 | -6/Proximity Caves | Discovered new exit (range 20) 18550 | -6/Proximity Caves | Build established: Hauler-Mutant 18825 | -6/Proximity Caves | Attracted the attention of an 0b10 checkpoint 19291 | -6/Proximity Caves | Core integrity fell below 50% 19333 | -6/Proximity Caves | Entered Factory 19333 | -6/Factory | Evolved 2 slots: Utility x2 19334 | -6/Factory | Identified exit to Lower Caves 19335 | -6/Factory | Loaded intel: 235 machine locations 19336 | -6/Factory | Loaded intel: 20 terminal locations 19437 | -6/Factory | Repaired Imp. Heavy Armor Plating 19555 | -6/Factory | Build established: Scavenger-Mutant 19639 | -6/Factory | Local fabrication network quarantined 19683 | -6/Factory | First assault squad dispatched 19685 | -6/Factory | Fabricated Exp. Sensor Array? 19972 | -6/Factory | Intercept squad dispatched 19980 | -6/Factory | Spotted Tracker 20002 | -6/Factory | Destroyed Tracker 20083 | -6/Factory | Spotted Combat Programmer 20091 | -6/Factory | Destroyed Combat Programmer 20339 | -6/Factory | Entered Lower Caves 20864 | -6/Lower Caves | Encountered a Warlord checkpoint 21147 | -6/Lower Caves | Learned Factory terminal intel 21262 | -6/Lower Caves | Learned Factory trap positions 21309 | -6/Lower Caves | Discovered new exit (range 20) 22105 | -6/Lower Caves | Entered another Lower Caves area 22226 | -6/Lower Caves | Discovered new exit (range 17) 22275 | -6/Lower Caves | Spotted B-75 Beast 22912 | -6/Lower Caves | Learned Factory stockpile data 22958 | -6/Lower Caves | Learned Factory garrison access intel 23013 | -6/Lower Caves | Build established: Hauler-Mutant 23702 | -6/Lower Caves | Discovered new exit (range 19) 23747 | -6/Lower Caves | Build established: Hauler-Skirmisher 24325 | -6/Lower Caves | Learned location of 1 exit from Lower Caves 24385 | -6/Lower Caves | Build established: Hauler-Mutant 24652 | -6/Lower Caves | Entered Zion 24811 | -6/Zion | Discovered new exit (range 9) 25709 | -6/Zion | Learned Factory emergency access door positions 28586 | -6/Zion | Gained Derelict followers 36961 | -6/Zion | Attacked by Zionites 36990 | -6/Zion | Destroyed 8 combat bots 39168 | -6/Zion | Destroyed Imprinter 39172 | -6/Zion | Extracted access codes from Imprinter's data core 39417 | -6/Zion | Opened final containment barrier to the Deep Caves 39442 | -6/Zion | Discovered new exit (range 5) 39621 | -6/Zion | Saw the warning signs outside the Deep Caves entrance 39963 | -6/Zion | Entered Deep Caves 40307 | -6/Deep Caves | Build established: Scavenger-Mutant 40771 | -6/Deep Caves | Z-Facility disabled 40876 | -6/Deep Caves | Found Prototype Protection 40876 | -6/Deep Caves | Identified Zio. Heavy Carapace 41025 | -6/Deep Caves | Build established: Hauler-Mutant 41970 | -6/Deep Caves | Discovered new exit (range 6) 42326 | -6/Deep Caves | Spotted as-22052 42336 | -6/Deep Caves | Destroyed as-22052 42343 | -6/Deep Caves | Triggered Deep Caves wall 42343 | -6/Deep Caves | Spotted AS-14389 42348 | -6/Deep Caves | Spotted AS-01474 42371 | -6/Deep Caves | Destroyed AS-01474 42398 | -6/Deep Caves | Destroyed AS-14389 42485 | -6/Deep Caves | Triggered Deep Caves wall 42625 | -6/Deep Caves | Build established: Scavenger-Mutant 42804 | -6/Deep Caves | Exposed GOLEM chamber 42826 | -6/Deep Caves | Found GOLEM Unit 42835 | -6/Deep Caves | Found GOLEM Unit 42966 | -6/Deep Caves | Build established: Hauler-Mutant 43407 | -6/Deep Caves | Build established: Hauler-Golem 46408 | -6/Deep Caves | Entered Proximity Caves 46633 | -5/Proximity Caves | Learned Factory stockpile data 47033 | -5/Proximity Caves | Discovered new exit (range 11) 47828 | -5/Proximity Caves | Entered Factory 47828 | -5/Factory | Evolved 2 slots: Propulsion x1, Utility x1 47829 | -5/Factory | Identified exit to Upper Caves 47830 | -5/Factory | Loaded intel: 111 trap records 47833 | -5/Factory | Loaded intel: 285 machine locations 47834 | -5/Factory | Loaded intel: 22 terminal locations 47835 | -5/Factory | Loaded intel: 4 garrison access locations 48057 | -5/Factory | Fabricated Lrn. Proton Cannon (x1) 48361 | -5/Factory | Intercept squad dispatched 48379 | -5/Factory | Spotted Tracker 48412 | -5/Factory | Spotted Combat Programmer 48434 | -5/Factory | Destroyed Combat Programmer 48441 | -5/Factory | Found Prototype Special Weapon 48443 | -5/Factory | Found Prototype Energy Cannon 48491 | -5/Factory | Discovered new exit (range 13) 48571 | -5/Factory | Found Exp. Signal Interpreter 48689 | -5/Factory | Destroyed Tracker 48697 | -5/Factory | Build established: Hauler-Mutant 48879 | -5/Factory | Identified EMDS 48881 | -5/Factory | Identified Exp. Remote Datajack 48936 | -5/Factory | Spotted B-75 Beast 48958 | -5/Factory | Sucked down chute 48958 | -5/Factory | Entered Waste 48958 | -5/Waste | The area was eerily silent 48990 | -5/Waste | 1 allies followed down the chute 49096 | -5/Waste | Found Damper Plating 49123 | -5/Waste | Found Damper Plating 49320 | -5/Waste | A Compactor rumbled back to life 49320 | -5/Waste | Spotted C-40 Crusher 49487 | -5/Waste | Destroyed C-40 Crusher 49595 | -5/Waste | Discovered new exit (range 11) 49639 | -5/Waste | Identified exit to Factory 49640 | -5/Waste | Entered Factory 49642 | -5/Factory | Loaded intel: 260 machine locations 50170 | -5/Factory | Discovered new exit (range 16) 50193 | -5/Factory | Identified exit to Extension 50197 | -5/Factory | Intercept squad dispatched 50210 | -5/Factory | Spotted Tracker 50230 | -5/Factory | Destroyed Tracker 50267 | -5/Factory | Spotted Combat Programmer 50279 | -5/Factory | Destroyed Combat Programmer 50323 | -5/Factory | Entered Extension 50324 | -5/Extension | Loaded intel: 35 machine locations 51024 | -5/Extension | Rescued a captive Derelict 51030 | -5/Extension | Rescued a captive Derelict 51411 | -5/Extension | Spotted B-75 Beast 51420 | -5/Extension | Spotted B-75 Beast 51426 | -5/Extension | Destroyed B-75 Beast 51465 | -5/Extension | Allies destroyed B-75 Beast 51639 | -5/Extension | Rescued a captive Derelict 51844 | -5/Extension | Rescued A7 51862 | -5/Extension | Rescued a captive Derelict 51862 | -5/Extension | Rescued a captive Derelict 51938 | -5/Extension | Rescued a captive Derelict 52016 | -5/Extension | Rescued a captive Derelict 52017 | -5/Extension | Rescued a captive Derelict 52066 | -5/Extension | Discovered new exit (range 10) 52068 | -5/Extension | Discovered new exit (range 6) 52076 | -5/Extension | Identified exit to Cetus 52079 | -5/Extension | Identified exit to Factory 52180 | -5/Extension | Build established: Hauler-Golem 52273 | -5/Extension | Disrupted transfer network 52532 | -5/Extension | P-70 Sage assimilated allied EY-385(g) 52537 | -5/Extension | P-70 Sage assimilated allied ZD-CCH(h) 52677 | -5/Extension | Entered Cetus 52677 | -5/Cetus | Accompanied by 9 allies 52678 | -5/Cetus | Loaded intel: 24 machine locations 52682 | -5/Cetus | Acquired a Cetus Manufacturing Module code from A7 52702 | -5/Cetus | Spotted Cetus Guard 52702 | -5/Cetus | Spotted Cetus Guard 52704 | -5/Cetus | Spotted Cetus Guard 52705 | -5/Cetus | Spotted Cetus Guard 52718 | -5/Cetus | Allies destroyed Cetus Guard 52719 | -5/Cetus | Allies destroyed Cetus Guard 52720 | -5/Cetus | Destroyed Cetus Guard 52721 | -5/Cetus | Allies destroyed Cetus Guard 52815 | -5/Cetus | Started Cetus Manufacturing Module 52840 | -5/Cetus | Manufactured an Enhanced Grunt 52865 | -5/Cetus | Manufactured an Enhanced Grunt 52890 | -5/Cetus | Manufactured an Enhanced Grunt 52895 | -5/Cetus | Escorted A7 to Cetus Mainframe 52915 | -5/Cetus | Manufactured an Enhanced Grunt 52928 | -5/Cetus | Found a strange terminal 52940 | -5/Cetus | Manufactured an Enhanced Grunt 52953 | -5/Cetus | Discovered new exit (range 16) 52984 | -5/Cetus | Spotted Cetus Guard 52985 | -5/Cetus | Spotted Cetus Guard 52988 | -5/Cetus | Spotted Cetus Guard 52988 | -5/Cetus | Spotted Cetus Guard 53002 | -5/Cetus | Destroyed Cetus Guard 53006 | -5/Cetus | Destroyed Cetus Guard 53008 | -5/Cetus | Allies destroyed Cetus Guard 53011 | -5/Cetus | Destroyed Cetus Guard 53017 | -5/Cetus | Discovered exit to Factory (range 15) 53028 | -5/Cetus | Met Revision 17 53100 | -5/Cetus | Cetus Manufacturing Module disabled 53144 | -5/Cetus | Identified exit to Archives 53187 | -5/Cetus | Entered Archives 53187 | -5/Archives | Accompanied by 5 allies 53188 | -5/Archives | Loaded intel: 8 machine locations 53192 | -5/Archives | Received a hacking code to weaken MAIN.C 53263 | -5/Archives | Discovered new exit (range 16) 53642 | -5/Archives | Build established: Hauler-Mutant 53738 | -5/Archives | Discovered exit to Factory (range 16) 53773 | -5/Archives | Identified exit to Hub_04(d) 53830 | -5/Archives | Entered Hub_04(d) 53830 | -5/Hub_04(d) | Accompanied by 3 allies 53831 | -5/Hub_04(d) | Loaded intel: 101 machine locations 53910 | -5/Hub_04(d) | Discovered exit to Factory (range 7) 54032 | -5/Hub_04(d) | Network Hub disabled 54034 | -5/Hub_04(d) | Spotted Lightning 54036 | -5/Hub_04(d) | Spotted Lightning 54038 | -5/Hub_04(d) | Spotted Lightning 54038 | -5/Hub_04(d) | Destroyed Lightning 54039 | -5/Hub_04(d) | Spotted Lightning 54041 | -5/Hub_04(d) | Spotted Lightning 54042 | -5/Hub_04(d) | Spotted Lightning 54044 | -5/Hub_04(d) | Spotted Lightning 54046 | -5/Hub_04(d) | Spotted Lightning 54048 | -5/Hub_04(d) | Spotted Lightning 54049 | -5/Hub_04(d) | Spotted Lightning 54051 | -5/Hub_04(d) | Spotted Lightning 54052 | -5/Hub_04(d) | Spotted Lightning 54088 | -5/Hub_04(d) | Destroyed Lightning 54098 | -5/Hub_04(d) | System corruption reached 10% 54098 | -5/Hub_04(d) | Destroyed Lightning 54107 | -5/Hub_04(d) | Destroyed Lightning 54110 | -5/Hub_04(d) | Destroyed Lightning 54146 | -5/Hub_04(d) | Destroyed Lightning 54155 | -5/Hub_04(d) | Destroyed Lightning 54161 | -5/Hub_04(d) | Destroyed Lightning 54164 | -5/Hub_04(d) | Network Hub disabled 54177 | -5/Hub_04(d) | Destroyed Lightning 54222 | -5/Hub_04(d) | Destroyed 8 combat bots 54222 | -5/Hub_04(d) | Found Exp. Targeting Computer 54225 | -5/Hub_04(d) | Found EMDS 54297 | -5/Hub_04(d) | Entered Factory 54297 | -4/Factory | Accompanied by 2 allies 54297 | -4/Factory | Evolved 2 slots: Propulsion x2 54298 | -4/Factory | Loaded intel: 217 machine locations 54415 | -4/Factory | Discovered new exit (range 7) 54467 | -4/Factory | Identified exit to Upper Caves 54547 | -4/Factory | First assault squad dispatched 54562 | -4/Factory | Sucked down chute 54562 | -4/Factory | Entered Waste 54577 | -4/Waste | EMP discharged 54585 | -4/Waste | 2 allies followed down the chute 54603 | -4/Waste | Spotted C-40 Crusher 54619 | -4/Waste | Spotted C-40 Crusher 54641 | -4/Waste | Destroyed C-40 Crusher 54647 | -4/Waste | Spotted C-40 Crusher 54677 | -4/Waste | EMP discharged 54679 | -4/Waste | Spotted C-40 Crusher 54715 | -4/Waste | Destroyed C-40 Crusher 54738 | -4/Waste | Spotted C-40 Crusher 54777 | -4/Waste | EMP discharged 54790 | -4/Waste | Destroyed C-40 Crusher 54792 | -4/Waste | Destroyed C-40 Crusher 54799 | -4/Waste | Found Damper Plating 54809 | -4/Waste | Found Damper Plating 54877 | -4/Waste | EMP discharged 54900 | -4/Waste | Spotted C-40 Crusher 54933 | -4/Waste | Destroyed C-40 Crusher 54977 | -4/Waste | EMP discharged 54995 | -4/Waste | Discovered new exit (range 10) 55077 | -4/Waste | EMP discharged 55081 | -4/Waste | Met Warlord forces unprepared to attack 55157 | -4/Waste | Allies destroyed C-40 Crusher 55177 | -4/Waste | EMP discharged 55222 | -4/Waste | Identified exit to Factory 55241 | -4/Waste | Entered Factory 55241 | -4/Factory | Accompanied by 19 allies 55242 | -4/Factory | Loaded intel: 244 machine locations 55381 | -4/Factory | Garrison activated, responded to threat 55408 | -4/Factory | Fabricated Exp. Sensor Array (x1) 55491 | -4/Factory | First assault squad dispatched 55661 | -4/Factory | Intercept squad dispatched 55669 | -4/Factory | Spotted Tracker 55683 | -4/Factory | Destroyed Tracker 55773 | -4/Factory | Spotted Combat Programmer 55779 | -4/Factory | Destroyed Combat Programmer 55791 | -4/Factory | Found EMDS 55804 | -4/Factory | Found Exp. Target Analyzer 56006 | -4/Factory | Entered Upper Caves 56058 | -4/Upper Caves | Build established: Scavenger-Mutant 56256 | -4/Upper Caves | Encountered a Warlord checkpoint 56605 | -4/Upper Caves | Discovered new exit (range 9) 56613 | -4/Upper Caves | Identified exit to Upper Caves 57126 | -4/Upper Caves | Entered another Upper Caves area 57200 | -4/Upper Caves | Encountered a Warlord checkpoint 57211 | -4/Upper Caves | Learned Research stockpile data 57263 | -4/Upper Caves | Discovered new exit (range 3) 57264 | -4/Upper Caves | Identified exit to Research 57732 | -4/Upper Caves | Discovered new exit (range 9) 57740 | -4/Upper Caves | Identified exit to Warlord 57771 | -4/Upper Caves | Entered Warlord 57810 | -4/Warlord | System corruption cleaned by Quarantine Array 58015 | -4/Warlord | Received a Watcher feed algorithm from an ecstatic Tinkerer 58105 | -4/Warlord | Met Warlord 58118 | -4/Warlord | Opened Warlord's prototype stash 58123 | -4/Warlord | Found Vortex Chain Reactor 58130 | -4/Warlord | Warlord's base attacked by MAIN.C 58136 | -4/Warlord | Found Prototype Hackware 58246 | -4/Warlord | Found Prototype Energy Gun 58246 | -4/Warlord | Identified Vortex Rifle 58250 | -4/Warlord | Found Vortex Rifle 58452 | -4/Warlord | Opened side exit 58474 | -4/Warlord | Discovered new exit (range 11) 58480 | -4/Warlord | Warlord forces counterattacked 58482 | -4/Warlord | Identified exit to Proximity Caves 58507 | -4/Warlord | Entered Proximity Caves 58507 | -3/Proximity Caves | Accompanied by 7 allies 58509 | -3/Proximity Caves | Attracted the attention of an 0b10 checkpoint 58891 | -3/Proximity Caves | Allies destroyed B-86 Titan 58949 | -3/Proximity Caves | Discovered exit to Research (range 9) 59529 | -3/Proximity Caves | Entered Research 59529 | -3/Research | Accompanied by 5 allies 59529 | -3/Research | Evolved 2 slots: Utility x2 59530 | -3/Research | Identified exit to Armory 59532 | -3/Research | Loaded intel: 113 machine locations 59622 | -3/Research | Repaired Cmb. Linear Gravjet 59693 | -3/Research | Fabricated Combat Drone Bay (x1) 59803 | -3/Research | P-80 Master assimilated allied Assassin 7b 59805 | -3/Research | P-80 Master assimilated allied Assassin 7a 60029 | -3/Research | First assault squad dispatched 60107 | -3/Research | Intercept squad dispatched 60124 | -3/Research | Spotted Tracker 60124 | -3/Research | Spotted Tracker 60130 | -3/Research | Spotted Combat Programmer 60137 | -3/Research | Allies destroyed Tracker 60138 | -3/Research | Destroyed Tracker 60177 | -3/Research | Destroyed Combat Programmer 60178 | -3/Research | Spotted Combat Programmer 60183 | -3/Research | Destroyed Combat Programmer 60198 | -3/Research | Found EMDS 60203 | -3/Research | Found Exp. Focal Shield 60208 | -3/Research | Found Exp. Target Analyzer 60305 | -3/Research | Identified Ghost Barrier 60318 | -3/Research | Entered Armory 60318 | -3/Armory | Accompanied by 1 ally 60319 | -3/Armory | Loaded intel: 77 machine locations 60818 | -3/Armory | First assault squad dispatched 60876 | -3/Armory | Discovered new exit (range 5) 60887 | -3/Armory | Identified exit to Lab 60892 | -3/Armory | Entered Lab 60892 | -3/Lab | Accompanied by 5 allies 60892 | -3/Lab | Discovered new exit (range 9) 60899 | -3/Lab | Identified exit to Research 60903 | -3/Lab | Hidden lab's door opened automatically 60903 | -3/Lab | Sensor layout match revealed 60904 | -3/Lab | Gained access to the hidden lab's interior 60904 | -3/Lab | Decrypted terminal 60913 | -3/Lab | Detected by scanners 60914 | -3/Lab | Disabled Active System Cloaker 60929 | -3/Lab | Confronted by A5 61068 | -3/Lab | Destroyed A5 61094 | -3/Lab | Decrypted terminal 61094 | -3/Lab | Acquired modification code for an L2 power cell 61098 | -3/Lab | Found Prototype Energy Gun 61098 | -3/Lab | Identified Hyp. EM Gauss Rifle 61101 | -3/Lab | Found Prototype Energy Gun 61101 | -3/Lab | Identified Tachyon Dispersion Ray 61104 | -3/Lab | Found Prototype Protection 61104 | -3/Lab | Identified Exp. Powered Armor 61121 | -3/Lab | Found Alien Artifact 61121 | -3/Lab | Identified Integrated Reactor 61121 | -3/Lab | Installed Integrated Reactor, increased core energy generation (+2%) 61124 | -3/Lab | Found Alien Artifact 61128 | -3/Lab | Found Alien Artifact 61133 | -3/Lab | Found Alien Artifact 61161 | -3/Lab | Found Prototype Hackware 61184 | -3/Lab | Identified Quantum Router 61210 | -3/Lab | Entered Research 61210 | -2/Research | Accompanied by 6 allies 61210 | -2/Research | Warlord forces began assault on 0b10 61210 | -2/Research | Evolved 2 slots: Utility x2 61211 | -2/Research | Loaded intel: 84 machine locations 61260 | -2/Research | Fabricated Exp. Terrain Scanner (x1) 61273 | -2/Research | Repaired Cld. Antigrav System 61298 | -2/Research | Fabricated Exp. Terrain Scan Processor (x1) 61320 | -2/Research | Research machine network offline 61489 | -2/Research | P-80 Master assimilated allied Archangel 8b 61519 | -2/Research | Borebot progress halted 61559 | -2/Research | Borebot progress halted 61615 | -2/Research | Local fabrication network quarantined 61706 | -2/Research | Borebot progress halted 61741 | -2/Research | Destroyed Executioner 61811 | -2/Research | Discovered new exit (range 11) 61893 | -2/Research | Identified exit to Quarantine 61912 | -2/Research | P-80 Master assimilated allied 51-HG1(K) 61918 | -2/Research | Spotted 51-HG1(K) 61951 | -2/Research | Met up with Warlord 62046 | -2/Research | Spotted Combat Programmer 62057 | -2/Research | Destroyed Tracker 62063 | -2/Research | Destroyed Tracker 62079 | -2/Research | Spotted Striker 62087 | -2/Research | Destroyed Striker 62088 | -2/Research | System corruption reached 10% 62129 | -2/Research | Destroyed Combat Programmer 62131 | -2/Research | Spotted Combat Programmer 62138 | -2/Research | Spotted Tracker 62171 | -2/Research | Found EMDS 62178 | -2/Research | Found Prototype Energy Gun 62178 | -2/Research | Identified Immobilizer 62298 | -2/Research | Spotted Striker 62372 | -2/Research | Found Prototype Slashing Weapon 62372 | -2/Research | Identified Particle Cleaver 62430 | -2/Research | Discovered new exit (range 15) 62440 | -2/Research | Spotted B-90 Cyclops 62468 | -2/Research | Identified exit to Access 62484 | -2/Research | Found Quantum Capacitor 62501 | -2/Research | Spotted Tracker 62502 | -2/Research | Spotted Tracker 62502 | -2/Research | Spotted Tracker 62503 | -2/Research | Spotted Tracker 62542 | -2/Research | Destroyed Tracker 62547 | -2/Research | Destroyed Tracker 62548 | -2/Research | Destroyed Tracker 62574 | -2/Research | Found Exp. Targeting Computer 62577 | -2/Research | Lost 8 parts (1p3n3u1w) 62605 | -2/Research | Found Exp. Phase Shifter 62611 | -2/Research | Found Exp. Target Analyzer 62621 | -2/Research | Spotted Combat Programmer 62626 | -2/Research | Destroyed Combat Programmer 62633 | -2/Research | Found Exp. Remote Datajack 62637 | -2/Research | Found EMDS 62649 | -2/Research | Found Exp. Focal Shield 62694 | -2/Research | Entered Quarantine 62695 | -2/Quarantine | Loaded intel: 90 machine locations 62737 | -2/Quarantine | Found Alien Impact Weapon 62818 | -2/Quarantine | Repaired Cld. Antigrav System 62997 | -2/Quarantine | Found Alien Artifact 62997 | -2/Quarantine | Identified Subatomic Replicator 63162 | -2/Quarantine | Identified Transdimensional Reconstructor 63162 | -2/Quarantine | Identified Core Regenerator 63162 | -2/Quarantine | Identified Core Reset Matrix 63162 | -2/Quarantine | Identified Core Stripper 63188 | -2/Quarantine | Found Alien Slashing Weapon 63219 | -2/Quarantine | Found Alien Artifact 63232 | -2/Quarantine | Intercept squad dispatched 63239 | -2/Quarantine | Spotted Tracker 63253 | -2/Quarantine | Destroyed Tracker 63254 | -2/Quarantine | Spotted Tracker 63258 | -2/Quarantine | Destroyed Tracker 63264 | -2/Quarantine | Identified Sigix Broadsword 63272 | -2/Quarantine | Spotted Combat Programmer 63283 | -2/Quarantine | Destroyed Combat Programmer 63287 | -2/Quarantine | Spotted Combat Programmer 63318 | -2/Quarantine | Destroyed Combat Programmer 63329 | -2/Quarantine | Found Exp. Phase Shifter 63332 | -2/Quarantine | Found EMDS 63341 | -2/Quarantine | Found EMDS 63387 | -2/Quarantine | Spotted Fortress 63427 | -2/Quarantine | Discovered new exit (range 6) 63430 | -2/Quarantine | Identified exit to Section 7 63444 | -2/Quarantine | First assault squad dispatched 63488 | -2/Quarantine | Destroyed Fortress 63495 | -2/Quarantine | Found Vortex Chain Reactor 63508 | -2/Quarantine | Found Exp. Force Field 63524 | -2/Quarantine | Entered Section 7 63525 | -2/Section 7 | Loaded intel: 151 machine locations 63540 | -2/Section 7 | Found Alien Artifact 63613 | -2/Section 7 | Found Integrated Reactor 63613 | -2/Section 7 | Installed Integrated Reactor, increased core energy generation (+2%) 63642 | -2/Section 7 | Identified Integrity Redistributor 63705 | -2/Section 7 | Destroyed S7 Guard 63722 | -2/Section 7 | Found Alien Artifact 63741 | -2/Section 7 | Spotted S7 Guard 63750 | -2/Section 7 | Destroyed S7 Guard 63774 | -2/Section 7 | First assault squad dispatched 63775 | -2/Section 7 | Identified Integrated Singularity Reactor 63776 | -2/Section 7 | Used Subatomic Replicator to replicate Integrated Singularity Reactor 63777 | -2/Section 7 | Installed Integrated Singularity Reactor, increased core energy generation (+2%) 63780 | -2/Section 7 | Installed Integrated Singularity Reactor, increased core energy generation (+2%) 63839 | -2/Section 7 | Found Core Regenerator 63885 | -2/Section 7 | Found Integrated Reactor 63885 | -2/Section 7 | Installed Integrated Reactor, increased core energy generation (+2%) 63972 | -2/Section 7 | Spotted S7 Guard 63974 | -2/Section 7 | Destroyed S7 Guard 63983 | -2/Section 7 | Found Alien Artifact 63987 | -2/Section 7 | Identified Core Membrane 63987 | -2/Section 7 | Installed Core Membrane, gained immunity to corruption 64041 | -2/Section 7 | Intercept squad dispatched 64051 | -2/Section 7 | Spotted Tracker 64051 | -2/Section 7 | Spotted Tracker 64071 | -2/Section 7 | Destroyed Tracker 64073 | -2/Section 7 | Destroyed Tracker 64091 | -2/Section 7 | Spotted Combat Programmer 64091 | -2/Section 7 | Spotted Combat Programmer 64098 | -2/Section 7 | Destroyed Combat Programmer 64107 | -2/Section 7 | Destroyed Combat Programmer 64119 | -2/Section 7 | Found EMDS 64121 | -2/Section 7 | Found Exp. Remote Datajack 64133 | -2/Section 7 | Found EMDS 64214 | -2/Section 7 | Intercept squad dispatched 64215 | -2/Section 7 | Modified the L2 Power Cell with code from the hidden lab 64240 | -2/Section 7 | Spotted Tracker 64242 | -2/Section 7 | Spotted Tracker 64243 | -2/Section 7 | Spotted Tracker 64243 | -2/Section 7 | Used Integrity Redistributor, redistributed integrity from core (-218) 64247 | -2/Section 7 | Core integrity fell below 50% 64250 | -2/Section 7 | Destroyed Tracker 64272 | -2/Section 7 | Spotted Combat Programmer 64277 | -2/Section 7 | Scanned by Researcher 64279 | -2/Section 7 | Destroyed Tracker 64291 | -2/Section 7 | Spotted Combat Programmer 64291 | -2/Section 7 | Spotted Combat Programmer 64308 | -2/Section 7 | Destroyed Combat Programmer 64317 | -2/Section 7 | Destroyed Combat Programmer 64321 | -2/Section 7 | Destroyed Combat Programmer 64336 | -2/Section 7 | Found Exp. Targeting Computer 64378 | -2/Section 7 | Spotted B-99 Colossus 64420 | -2/Section 7 | Found Alien Artifact 64420 | -2/Section 7 | Identified LRC Insulator 64420 | -2/Section 7 | Installed LRC Insulator, gained EM resistance (25) 64422 | -2/Section 7 | Found Alien Artifact 64422 | -2/Section 7 | Identified LRC Boosters 64422 | -2/Section 7 | Installed LRC Boosters, increased mass support (+10) 64467 | -2/Section 7 | Intercept squad dispatched 64480 | -2/Section 7 | Spotted Tracker 64480 | -2/Section 7 | Spotted Tracker 64493 | -2/Section 7 | Spotted Tracker 64513 | -2/Section 7 | Destroyed Tracker 64513 | -2/Section 7 | Spotted Tracker 64525 | -2/Section 7 | Destroyed Tracker 64541 | -2/Section 7 | Spotted Combat Programmer 64564 | -2/Section 7 | Destroyed Tracker 64565 | -2/Section 7 | Spotted Combat Programmer 64633 | -2/Section 7 | Spotted Combat Programmer 64646 | -2/Section 7 | Destroyed Combat Programmer 64647 | -2/Section 7 | Spotted Combat Programmer 64664 | -2/Section 7 | Destroyed Combat Programmer 64673 | -2/Section 7 | Destroyed Combat Programmer 64689 | -2/Section 7 | Destroyed Combat Programmer 64705 | -2/Section 7 | Found Exp. Targeting Computer 64715 | -2/Section 7 | Destroyed 8 combat bots 64733 | -2/Section 7 | Destroyed Tracker 64834 | -2/Section 7 | Used Core Regenerator, restored core integrity (+362) 64835 | -2/Section 7 | Used Core Regenerator, restored core integrity (+362) 64891 | -2/Section 7 | Intercept squad dispatched 64896 | -2/Section 7 | Spotted Tracker 64900 | -2/Section 7 | Spotted Tracker 64903 | -2/Section 7 | Spotted Tracker 64903 | -2/Section 7 | Spotted Tracker 64903 | -2/Section 7 | Spotted Tracker 64903 | -2/Section 7 | Destroyed Tracker 64905 | -2/Section 7 | Destroyed Tracker 64905 | -2/Section 7 | Destroyed Tracker 64905 | -2/Section 7 | Destroyed Tracker 64912 | -2/Section 7 | Destroyed Tracker 64920 | -2/Section 7 | Spotted Combat Programmer 64921 | -2/Section 7 | Spotted Combat Programmer 64921 | -2/Section 7 | Spotted Combat Programmer 64923 | -2/Section 7 | Spotted Combat Programmer 64929 | -2/Section 7 | Spotted Combat Programmer 64961 | -2/Section 7 | Destroyed Combat Programmer 64971 | -2/Section 7 | Destroyed Combat Programmer 64980 | -2/Section 7 | Destroyed Combat Programmer 65003 | -2/Section 7 | Destroyed Combat Programmer 65010 | -2/Section 7 | Destroyed Combat Programmer 65015 | -2/Section 7 | Found Exp. Phase Shifter 65142 | -2/Section 7 | Discovered exit to Access (range 15) 65165 | -2/Section 7 | Entered Access 65165 | -1/Access | Evolved 2 slots: Utility x2 65166 | -1/Access | Loaded intel: 105 machine locations 65445 | -1/Access | Intercept squad dispatched 65445 | -1/Access | Discovered new exit (range 7) 65446 | -1/Access | Identified exit to Command 65446 | -1/Access | Entered Command 65447 | -1/Command | Loaded intel: 58 machine locations 65463 | -1/Command | Phase Generator disabled 65530 | -1/Command | Found Quantum Capacitor 65595 | -1/Command | Disengaged cave seal 65724 | -1/Command | First assault squad dispatched 65832 | -1/Command | Disengaged cave seal 65960 | -1/Command | Spotted Combat Programmer 65961 | -1/Command | Spotted Combat Programmer 65961 | -1/Command | Spotted M Guard 65964 | -1/Command | Destroyed M Guard 65964 | -1/Command | Combat Programmer assimilated allied 0T-OSV(d) 65968 | -1/Command | Destroyed M Guard 65974 | -1/Command | Destroyed Combat Programmer 65982 | -1/Command | Allies destroyed Combat Programmer 65982 | -1/Command | Destroyed all MAIN.C guards 66017 | -1/Command | High security lockdown imminent 66087 | -1/Command | Destroyed 60 combat bots 66097 | -1/Command | High security lockdown engaged 66186 | -1/Command | Destroyed 18 combat bots 66213 | -1/Command | Door terminal overloaded 66218 | -1/Command | Found Zero-point Reactor 66220 | -1/Command | Found Hellfire Missile Launcher 66226 | -1/Command | Found Prototype Device 66226 | -1/Command | Identified AEGIS Remote Shield 66270 | -1/Command | Met MAIN.C 66270 | -1/Command | Hacked MAIN.C using A7's code 66277 | -1/Command | Spotted Investigator 66296 | -1/Command | Destroyed Investigator 66342 | -1/Command | Destroyed 19 combat bots 66409 | -1/Command | Spotted Striker 66416 | -1/Command | Destroyed Striker 66478 | -1/Command | Destroyed 18 combat bots 66537 | -1/Command | Destroyed MAIN.C Shell 66539 | -1/Command | MAIN.C activated Command garrisons 66557 | -1/Command | P-80 Master assimilated allied DQ-JCC(l) 66562 | -1/Command | P-80 Master assimilated allied GT-59F(b) 66592 | -1/Command | Spotted Executioner 66592 | -1/Command | Spotted Executioner 66593 | -1/Command | Spotted Alpha 7 66596 | -1/Command | Spotted B-99 Colossus 66596 | -1/Command | Spotted Executioner 66596 | -1/Command | Spotted Striker 66596 | -1/Command | Spotted Executioner 66596 | -1/Command | Spotted Alpha 7 66607 | -1/Command | Destroyed Striker 66610 | -1/Command | Destroyed Executioner 66651 | -1/Command | Destroyed Executioner 66653 | -1/Command | Lost 3 parts (2n1u) 66673 | -1/Command | Destroyed Executioner 66729 | -1/Command | Destroyed Executioner 66744 | -1/Command | Destroyed Alpha 7 66748 | -1/Command | Found Exp. Target Analyzer 66750 | -1/Command | Found Prototype Ballistic Gun 66752 | -1/Command | Found Exp. Targeting Computer 66754 | -1/Command | Found Prototype Device 66754 | -1/Command | Identified Exp. ECM Suite 66813 | -1/Command | Identified Multirail 66825 | -1/Command | Destroyed 76 combat bots 66908 | -1/Command | Build established: Scavenger-Sprinter 66916 | -1/Command | Destroyed MAIN.C 66944 | -1/Command | Destroyed Alpha 7 67078 | -1/Command | 0b10 Conduit disabled 67220 | -1/Command | Build established: Scavenger-Mutant 67866 | -1/Command | Found Prototype Protection 67866 | -1/Command | Identified Hvy. Regenerative Plating 67872 | -1/Command | Found Exp. Powered Armor 67878 | -1/Command | Found Prototype Launcher 67878 | -1/Command | Identified Containment Facilitator 67968 | -1/Command | Discovered new exit (range 8) 68494 | -1/Command | Spotted B-99 Colossus 68514 | -1/Command | Discovered new exit (range 26) 68514 | -1/Command | Destroyed B-99 Colossus 68646 | -1/Command | Spotted B-99 Colossus 68953 | -1/Command | Warped through subspace to slip node 68953 | -1/Command | Discovered new exit (range 5) 68958 | -1/Command | Entered Access_0 68959 | -1/Access_0 | Loaded intel: 52 machine locations 68959 | -1/Access_0 | Met Architect 68976 | -1/Access_0 | Found Subatomic Replicator 68994 | -1/Access_0 | Found Alien Artifact 69001 | -1/Access_0 | A6 warped into view 69009 | -1/Access_0 | Destroyed A6 69015 | -1/Access_0 | Found Femtoactuators 69027 | -1/Access_0 | Subspace Access Node disabled 69029 | -1/Access_0 | Spotted Enhanced Programmer 69035 | -1/Access_0 | Found Exp. Phase Shifter 69038 | -1/Access_0 | Spotted Enhanced Programmer 69044 | -1/Access_0 | Subspace Access Node disabled 69071 | -1/Access_0 | Spotted Enhanced Programmer 69080 | -1/Access_0 | Spotted Enhanced Programmer 69093 | -1/Access_0 | Spotted Enhanced Programmer 69100 | -1/Access_0 | Subspace Access Node disabled 69107 | -1/Access_0 | Spotted Enhanced Programmer 69123 | -1/Access_0 | Spotted Enhanced Programmer 69125 | -1/Access_0 | Subspace Access Node disabled 69158 | -1/Access_0 | Started Test 138-B, establishing a local singularity 69159 | -1/Access_0 | Singularity Gate disabled 69161 | -1/Access_0 | A4 warped into view 69233 | -1/Access_0 | Used Subatomic Replicator to replicate Core Stripper 69236 | -1/Access_0 | Destroyed Enhanced Programmer 69241 | -1/Access_0 | Destroyed Enhanced Programmer 69257 | -1/Access_0 | Lost 7 parts (3n3u1w) 69267 | -1/Access_0 | Destroyed Enhanced Programmer 69295 | -1/Access_0 | Destroyed A8 69313 | -1/Access_0 | Destroyed Enhanced Programmer 69317 | -1/Access_0 | Destroyed A2 69322 | -1/Access_0 | Destroyed A4 69324 | -1/Access_0 | Destroyed Enhanced Programmer 69350 | -1/Access_0 | Destroyed 14 combat bots 69353 | -1/Access_0 | Core integrity fell below 50% 69356 | -1/Access_0 | Found Exp. Focal Shield 69358 | -1/Access_0 | Found Hvy. Regenerative Plating 69444 | -1/Access_0 | Lost 19 parts (2p6n10u1w) 69462 | -1/Access_0 | Spotted Enhanced Programmer 69470 | -1/Access_0 | Found Integrity Redistributor 69477 | -1/Access_0 | Spotted Enhanced Programmer 69482 | -1/Access_0 | Destroyed Enhanced Programmer 69485 | -1/Access_0 | Destroyed Enhanced Programmer 69498 | -1/Access_0 | Destroyed Enhanced Programmer 69613 | -1/Access_0 | Destroyed Architect 69617 | -1/Access_0 | Spotted Enhanced Programmer 69626 | -1/Access_0 | Found Exp. Powered Armor 69631 | -1/Access_0 | Extracted unknown sensor trigger ID from Architect's data core 69633 | -1/Access_0 | Found Alien Artifact 69665 | -1/Access_0 | Found Prototype Device 69665 | -1/Access_0 | Identified ST Field Compressor 69745 | -1/Access_0 | Found Prototype Device 69745 | -1/Access_0 | Identified Desublimator 69790 | -1/Access_0 | Destroyed Enhanced Programmer 69808 | -1/Access_0 | Destroyed Enhanced Programmer 69824 | -1/Access_0 | Found Thermal Barrier 69826 | -1/Access_0 | Found Exp. Focal Shield 69830 | -1/Access_0 | Found Prototype Energy Gun 69830 | -1/Access_0 | Identified Enh. Gamma Rifle 69842 | -1/Access_0 | Found Exp. Weapon Cycler 69852 | -1/Access_0 | Found Prototype Device 69852 | -1/Access_0 | Identified Adv. Particle Accelerator 69893 | -1/Access_0 | Found Exp. Powered Armor 69909 | -1/Access_0 | Found Exp. Powered Armor 69928 | -1/Access_0 | A3 warped into view 69937 | -1/Access_0 | Destroyed A3 69943 | -1/Access_0 | Found Prototype Ballistic Gun 69943 | -1/Access_0 | Identified A3's Sniper Rifle 69983 | -1/Access_0 | Found Exp. Targeting Computer 70037 | -1/Access_0 | Found Core Expander 70165 | -1/Access_0 | Build established: Scavenger-Sprinter 70246 | -1/Access_0 | Found Sigix Corpse 70247 | -1/Access_0 | Identified Hpw. Transdimensional Reconstructor (x2) 70247 | -1/Access_0 | Warped through subspace to slip node 70247 | -1/Access_0 | Discovered new exit (range 8) 70253 | *** | Establishing 0b11! Last Messages --------------- 70225_ EMDS Slug penetrates Enhanced Grunt. 70225_ Neutron Cannon fried. 70225_ Adv. Heat Sink fried. 70225_ Enhanced Grunt destroyed. 70227_ EMDS Slug penetrates Enhanced Grunt. 70228_ Enhanced Grunt system terminally corrupted. 70228_ Adv. Heat Sink fried. 70228_ Antimatter Reactor fried. 70228_ Adv. Particle Charger fried. 70228_ EMDS Slug penetrates Enhanced Grunt. 70229_ Enhanced Grunt suffers critical hit. 70229_ Exp. Thermal Shield fried. 70229_ Enhanced Grunt destroyed. 70232_ Acquired 60 matter. 70242_ EMDS Slug penetrates Analysis Chamber. 70242_ Analysis Chamber breached. 70246_ Acquired Sigix Corpse. 70247_ Identified Hpw. Transdimensional Reconstructor. 70247_ Warped through subspace, drawn to slip node. 70247_ EXIT=FOUND Map ----- +----------------------------------------------------+ | | | | | | | | | | | | | | | | | | | | | | | | | | | | | | | | | ?????????????????????????????????????????????????? | | ?????????????????????????????????????????????????? | | ?????????????????????????????????????????????????? | | ?????????????????????????????????????????????????? | | ?????????????????????????????????????????????????? | | ?????????????????????????????????????????????????? | | ????????????????????????###??????????????????????? | | ???????????????????????## ##?????????????????????? | | ???????????????????????# #?????????????????????? | | ???????????????????????# @ #?????????????????????? | | ??????????????????????## #?????????????????????? | | ??????????????????????# #?????????????????????? | | ??????????????????????# ##?????????????????????? | | ??????????????????????## #?????????????????????? | | ??????????????????????# #?????????????????????? | | ??????????????????????# ##?????????????????????? | | ??????????????????????# < #?????????????????????? | | ??????????????????????# ##?????????????????????? | | ??????????????????????## #??????????????????????? | | ???????????????????????####??????????????????????? | | ?????????????????????????????????????????????????? | | ?????????????????????????????????????????????????? | | ?????????????????????????????????????????????????? | | ?????????????????????????????????????????????????? | | ?????????????????????????????????????????????????? | | ?????????????????????????????????????????????????? | | ?????????????????????????????????????????????????? | | ?????????????????????????????????????????????????? | | ?????????????????????????????????????????????????? | | ?????????????????????????????????????????????????? | | ?????????????????????????????????????????????????? | | ?????????????????????????????????????????????????? | | ?????????????????????????????????????????????????? | | ?????????????????????????????????????????????????? | +----------------------------------------------------+ Best States ------------- Heat Dissipation 147 Coolant Potential 120 Energy Generation 127 Energy Capacity 1700 Matter Stores 550 Matter Capacity 550 Sight Range 16 Robot Scan Range 30 Terrain Scan Range 30 Terrain Scan Density 1010 Additional Mass Support 25 Armor Coverage 2400 Resistance: KI 30 Resistance: TH 90 Resistance: EX 90 Resistance: EM 100 Core Shielding 40 Weapon Shielding 90 Weapon Cycling 30 Melee Speed Boost 50 Phase Shifting 20 Evasion (%) 81 Targeting Accuracy 36 Target Analysis 12 Armor Integrity Analysis 50 Recoil Reduction 2 Particle Charging 50 Offensive Hacking 14 Item Schematics ----------------- Cmb. Airjet | -8/Materials | Scanalyzed Humpback | -8/Materials | Scanalyzed Hcp. Storage Unit | -8/Materials | Scanalyzed Lrg. Storage Unit | -8/Materials | Scanalyzed Combat Drone Bay | -7/Data Miner | Free Lgt. Regenerative Plating | -7/Data Miner | Free Exp. Sensor Array | -7/Data Miner | Free Exp. Terrain Scanner | -7/Data Miner | Free Exp. Terrain Scan Processor | -7/Data Miner | Free Kinetic Spear | -7/Data Miner | Free Hvy. Reactive Plating | -5/Extension | Hacked Robot Schematics ------------------ S-27 Virus | -7/Data Miner | Free G-50 Soldier | -7/Data Miner | Free G-67 Veteran | -7/Data Miner | Free L-41 Fighter | -7/Data Miner | Free X-72 Disruptor | -7/Data Miner | Free P-70 Sage | -7/Data Miner | Free I-36 Angel | -7/Data Miner | Free M-13 Machinist | -5/Extension | Hacked Fabricated ------------ Power Sword | x2 | -7/Factory | Preloaded Cmb. Airjet | x2 | -7/Factory Exp. Sensor Array | x1 | -6/Factory Lrn. Proton Cannon | x1 | -5/Factory | Preloaded Exp. Sensor Array | x1 | -4/Factory Combat Drone Bay | x1 | -3/Research Exp. Terrain Scanner | x1 | -2/Research Exp. Terrain Scan Processor | x1 | -2/Research Alien Tech Used ----------------- Core Expander Integrated Reactor Subatomic Replicator Sigix Broadsword Core Stripper Integrated Singularity Reactor Core Membrane Integrity Redistributor LRC Insulator LRC Boosters Core Regenerator Transdimensional Reconstructor High-powered Transdimensional Reconstructor Achievements -------------- None Challenges ------------ None Game ------ Seed GravityTiamatMapper Manual? 0 Play Time 14:44:36 Cumulative 1083.6 hours Start 2019.12.27 @ 18:03:03 End 2020.03.13 @ 15:01:42 Sessions 13 Manual Loads 0 Difficulty Rogue Special Mode None Game No. 378 Rogue 378 Adventurer 0 Explorer 0 Win Type 1 Total 249 Types 214/6/11/3/3/2/10 Lore% 98 Gallery% 100 Achievement% 92 Wizard Run 0 Options --------- ASCII 0 Keyboard 0 Movement Numpad Keybinds 0 Fullscreen 1 Font 18/Terminus Map View 76x50 Tactical HUD 1 Map Filters NONE Filters NONE Steam 1 RUN: 88b18cc5-8d4d-4ed3-a725-b0f15639f315